Workbook

Sheet Basic Analysis
B1: Basic Analysis
B4: Activity unit = | D4: pCi | H4: Sample count time, tS = | I4: 100.0951093 | J4: min
B5: Analytical action level, AAL = | D5: 5 | I5: =IF(RAND()>=0,"","Force a calculation after every edit") -> 
B6: Required relative method uncertainty, ϕMR = | D6: 0.1 | H6: ϕM = | I6: =IFERROR(SQRT((R.S / t.S + R.B / t.B) / R.N^2 + urel_D^2 + urel_DF^2), "") -> 0.1 | J6: =IF(RAND()>0,"","") -> 
B7: Required detection limit, MDCR = | D7: 1 | H7: MDC = | I7: =IFERROR(getGSmdc(t.S, R.B, 1/t.S+1/t.B, (F.A*D*DF)), "") -> 1.045552337
B8: Background, RB = | D8: 1 | E8: cpm
B9: Bkgd count time, tB = | D9: 3000 | E9: min | H9: Half-life, T1/2 = | I9: =VLOOKUP(Nuclide, Nuclide_Table[], 2, FALSE) -> 6.15 | J9: =VLOOKUP(Nuclide,Nuclide_Table[],4,FALSE) -> h
B10: Sample decay time, tD = | D10: 5 | E10: h | H10: urel(T1/2) = | I10: =IFERROR(VLOOKUP(Nuclide, Nuclide_Table[], 3, FALSE) / T.12, "") -> 0.00487804878
B11: Nuclide = | D11: Ac-228 | H11: Ft.D = | I11: =VLOOKUP(Unit_t.D, Time_Unit_Table[], 2, FALSE) / 60 -> 60 | J11: =IF(Unit_t.D="min","","min/"&Unit_t.D) -> min/h
H12: FA = | I12: =VLOOKUP(Unit_Activity, ActUnit_Table[], 2, FALSE) * 60 -> 2.22 | J12: =IF(Unit_Activity="dpm","","dpm/"&Unit_Activity) -> dpm/pCi
C13: Divisor | D13: Value | E13: urel | H13: Decay constant, λ = | I13: =IFERROR( VLOOKUP(Nuclide, Nuclide_Table[], 5, FALSE), "") -> 0.001878447644 | J13: min−1
C14: V | D14: 1 | E14: 0.005 | H14: Product of divisors, D = | I14: =IFERROR(PRODUCT(Main_Factor_Table[Value]), "") -> 0.3
C15: ε | D15: 0.4 | E15: 0.01 | H15: urel(D) = | I15: =IFERROR(SQRT(SUMSQ(Main_Factor_Table[urel])), "") -> 0.02738612788
C16: Y | D16: 0.75 | E16: 0.025 | H16: Decay before counting, DBC = | I16: =EXP(-λ * t.D * F.t.D) -> 0.5691938069
C17: I | D17: 1 | E17: 0 | H17: Decay during counting, DDC = | I17: =IFERROR(DDCf(λ * t.S),"") -> 0.9116135559
H18: Total decay factor, DF = | I18: =IFERROR(DBC * DDC, "") -> 0.5188847904
H19: urel(DF) = | I19: =IFERROR(urelDF(λ, urel_T.12, t.D*F.t.D, t.S), "") -> 0.003193178885
H20: Net count rate, RN = | I20: =IFERROR(D * DF * AAL * F.A, "") -> 1.727886352 | J20: cpm
H21: Gross count rate, RS = | I21: =IFERROR(R.N + R.B, "") -> 2.727886352 | J21: cpm
A24: Options:
A25: 1. Calculate the count time for a required relative method uncertainty at the AAL.
A26: 2. Calculate the count time for a required MDC.
A27: 3. Enter the count time manually.
A29: Model: AC = (RS − RB) / ((product of divisors) × DF)
H30: 5 | I30: iterations
C31: pw=Keith

Sheet Basic Graphs
A1: Paired = | B1: FALSE
A2: tS | B2: tB | C2: DDC | D2: DF | E2: RN | F2: RS | G2: ϕM | H2: ϕMR | I2: MDC | J2: MDCR
A3: 1 | B3: =IF(Paired, Main_Graphs_Table[[#This Row],[tS]], 'Basic Analysis'!t.B) -> 3000 | C3: =DDCf( ('Basic Analysis'!λ) * Main_Graphs_Table[[#This Row],[tS]]) -> 0.999061364 | D3: =('Basic Analysis'!DBC) * Main_Graphs_Table[[#This Row],[DDC]] -> 0.5686595411 | E3: =('Basic Analysis'!AAL) * ('Basic Analysis'!D) * Main_Graphs_Table[[#This Row],[DF]] * ('Basic Analysis'!F.A) -> 1.893636272 | F3: =Main_Graphs_Table[[#This Row],[RN]] + ('Basic Analysis'!R.B) -> 2.893636272 | G3: =SQRT( (Main_Graphs_Table[[#This Row],[RS]]/Main_Graphs_Table[[#This Row],[tS]] + ('Basic Analysis'!R.B)/Main_Graphs_Table[[#This Row],[tB]]) / Main_Graphs_Table[[#This Row],[RN]]^2 + ('Basic Analysis'!urel_D)^2 +urelDF('Basic Analysis'!λ, 'Basic Analysis'!urel_T.12, ('Basic Analysis'!t.D)*('Basic Analysis'!F.t.D), Main_Graphs_Table[[#This Row],[tS]])^ 2) -> 0.8987815742 | H3: ='Basic Analysis'!φ.MR -> 0.1 | I3: =((1.645^2)/Main_Graphs_Table[[#This Row],[tS]] + 2*1.645*SQRT('Basic Analysis'!R.B/Main_Graphs_Table[[#This Row],[tS]] + 'Basic Analysis'!R.B/Main_Graphs_Table[[#This Row],[tB]])) / (('Basic Analysis'!D) * Main_Graphs_Table[[#This Row],[DF]] * ('Basic Analysis'!F.A)) -> 15.8334876 | J3: ='Basic Analysis'!MDC.R -> 1
A4: 1.5 | B4: =IF(Paired, Main_Graphs_Table[[#This Row],[tS]], 'Basic Analysis'!t.B) -> 3000 | C4: =DDCf( ('Basic Analysis'!λ) * Main_Graphs_Table[[#This Row],[tS]]) -> 0.9985924865 | D4: =('Basic Analysis'!DBC) * Main_Graphs_Table[[#This Row],[DDC]] -> 0.568392659 | E4: =('Basic Analysis'!AAL) * ('Basic Analysis'!D) * Main_Graphs_Table[[#This Row],[DF]] * ('Basic Analysis'!F.A) -> 1.892747554 | F4: =Main_Graphs_Table[[#This Row],[RN]] + ('Basic Analysis'!R.B) -> 2.892747554 | G4: =SQRT( (Main_Graphs_Table[[#This Row],[RS]]/Main_Graphs_Table[[#This Row],[tS]] + ('Basic Analysis'!R.B)/Main_Graphs_Table[[#This Row],[tB]]) / Main_Graphs_Table[[#This Row],[RN]]^2 + ('Basic Analysis'!urel_D)^2 +urelDF('Basic Analysis'!λ, 'Basic Analysis'!urel_T.12, ('Basic Analysis'!t.D)*('Basic Analysis'!F.t.D), Main_Graphs_Table[[#This Row],[tS]])^ 2) -> 0.7342768046 | H4: ='Basic Analysis'!φ.MR -> 0.1 | I4: =((1.645^2)/Main_Graphs_Table[[#This Row],[tS]] + 2*1.645*SQRT('Basic Analysis'!R.B/Main_Graphs_Table[[#This Row],[tS]] + 'Basic Analysis'!R.B/Main_Graphs_Table[[#This Row],[tB]])) / (('Basic Analysis'!D) * Main_Graphs_Table[[#This Row],[DF]] * ('Basic Analysis'!F.A)) -> 11.86360509 | J4: ='Basic Analysis'!MDC.R -> 1
A5: 2 | B5: =IF(Paired, Main_Graphs_Table[[#This Row],[tS]], 'Basic Analysis'!t.B) -> 3000 | C5: =DDCf( ('Basic Analysis'!λ) * Main_Graphs_Table[[#This Row],[tS]]) -> 0.9981239025 | D5: =('Basic Analysis'!DBC) * Main_Graphs_Table[[#This Row],[DDC]] -> 0.5681259439 | E5: =('Basic Analysis'!AAL) * ('Basic Analysis'!D) * Main_Graphs_Table[[#This Row],[DF]] * ('Basic Analysis'!F.A) -> 1.891859393 | F5: =Main_Graphs_Table[[#This Row],[RN]] + ('Basic Analysis'!R.B) -> 2.891859393 | G5: =SQRT( (Main_Graphs_Table[[#This Row],[RS]]/Main_Graphs_Table[[#This Row],[tS]] + ('Basic Analysis'!R.B)/Main_Graphs_Table[[#This Row],[tB]]) / Main_Graphs_Table[[#This Row],[RN]]^2 + ('Basic Analysis'!urel_D)^2 +urelDF('Basic Analysis'!λ, 'Basic Analysis'!urel_T.12, ('Basic Analysis'!t.D)*('Basic Analysis'!F.t.D), Main_Graphs_Table[[#This Row],[tS]])^ 2) -> 0.6362701241 | H5: ='Basic Analysis'!φ.MR -> 0.1 | I5: =((1.645^2)/Main_Graphs_Table[[#This Row],[tS]] + 2*1.645*SQRT('Basic Analysis'!R.B/Main_Graphs_Table[[#This Row],[tS]] + 'Basic Analysis'!R.B/Main_Graphs_Table[[#This Row],[tB]])) / (('Basic Analysis'!D) * Main_Graphs_Table[[#This Row],[DF]] * ('Basic Analysis'!F.A)) -> 9.726328381 | J5: ='Basic Analysis'!MDC.R -> 1
A6: 3 | B6: =IF(Paired, Main_Graphs_Table[[#This Row],[tS]], 'Basic Analysis'!t.B) -> 3000 | C6: =DDCf( ('Basic Analysis'!λ) * Main_Graphs_Table[[#This Row],[tS]]) -> 0.9971876139 | D6: =('Basic Analysis'!DBC) * Main_Graphs_Table[[#This Row],[DDC]] -> 0.5675930142 | E6: =('Basic Analysis'!AAL) * ('Basic Analysis'!D) * Main_Graphs_Table[[#This Row],[DF]] * ('Basic Analysis'!F.A) -> 1.890084737 | F6: =Main_Graphs_Table[[#This Row],[RN]] + ('Basic Analysis'!R.B) -> 2.890084737 | G6: =SQRT( (Main_Graphs_Table[[#This Row],[RS]]/Main_Graphs_Table[[#This Row],[tS]] + ('Basic Analysis'!R.B)/Main_Graphs_Table[[#This Row],[tB]]) / Main_Graphs_Table[[#This Row],[RN]]^2 + ('Basic Analysis'!urel_D)^2 +urelDF('Basic Analysis'!λ, 'Basic Analysis'!urel_T.12, ('Basic Analysis'!t.D)*('Basic Analysis'!F.t.D), Main_Graphs_Table[[#This Row],[tS]])^ 2) -> 0.5201127751 | H6: ='Basic Analysis'!φ.MR -> 0.1 | I6: =((1.645^2)/Main_Graphs_Table[[#This Row],[tS]] + 2*1.645*SQRT('Basic Analysis'!R.B/Main_Graphs_Table[[#This Row],[tS]] + 'Basic Analysis'!R.B/Main_Graphs_Table[[#This Row],[tB]])) / (('Basic Analysis'!D) * Main_Graphs_Table[[#This Row],[DF]] * ('Basic Analysis'!F.A)) -> 7.413530641 | J6: ='Basic Analysis'!MDC.R -> 1
A7: 4 | B7: =IF(Paired, Main_Graphs_Table[[#This Row],[tS]], 'Basic Analysis'!t.B) -> 3000 | C7: =DDCf( ('Basic Analysis'!λ) * Main_Graphs_Table[[#This Row],[tS]]) -> 0.9962524966 | D7: =('Basic Analysis'!DBC) * Main_Graphs_Table[[#This Row],[DDC]] -> 0.5670607512 | E7: =('Basic Analysis'!AAL) * ('Basic Analysis'!D) * Main_Graphs_Table[[#This Row],[DF]] * ('Basic Analysis'!F.A) -> 1.888312301 | F7: =Main_Graphs_Table[[#This Row],[RN]] + ('Basic Analysis'!R.B) -> 2.888312301 | G7: =SQRT( (Main_Graphs_Table[[#This Row],[RS]]/Main_Graphs_Table[[#This Row],[tS]] + ('Basic Analysis'!R.B)/Main_Graphs_Table[[#This Row],[tB]]) / Main_Graphs_Table[[#This Row],[RN]]^2 + ('Basic Analysis'!urel_D)^2 +urelDF('Basic Analysis'!λ, 'Basic Analysis'!urel_T.12, ('Basic Analysis'!t.D)*('Basic Analysis'!F.t.D), Main_Graphs_Table[[#This Row],[tS]])^ 2) -> 0.4509506583 | H7: ='Basic Analysis'!φ.MR -> 0.1 | I7: =((1.645^2)/Main_Graphs_Table[[#This Row],[tS]] + 2*1.645*SQRT('Basic Analysis'!R.B/Main_Graphs_Table[[#This Row],[tS]] + 'Basic Analysis'!R.B/Main_Graphs_Table[[#This Row],[tB]])) / (('Basic Analysis'!D) * Main_Graphs_Table[[#This Row],[DF]] * ('Basic Analysis'!F.A)) -> 6.149942861 | J7: ='Basic Analysis'!MDC.R -> 1
A8: 5 | B8: =IF(Paired, Main_Graphs_Table[[#This Row],[tS]], 'Basic Analysis'!t.B) -> 3000 | C8: =DDCf( ('Basic Analysis'!λ) * Main_Graphs_Table[[#This Row],[tS]]) -> 0.9953185488 | D8: =('Basic Analysis'!DBC) * Main_Graphs_Table[[#This Row],[DDC]] -> 0.5665291539 | E8: =('Basic Analysis'!AAL) * ('Basic Analysis'!D) * Main_Graphs_Table[[#This Row],[DF]] * ('Basic Analysis'!F.A) -> 1.886542082 | F8: =Main_Graphs_Table[[#This Row],[RN]] + ('Basic Analysis'!R.B) -> 2.886542082 | G8: =SQRT( (Main_Graphs_Table[[#This Row],[RS]]/Main_Graphs_Table[[#This Row],[tS]] + ('Basic Analysis'!R.B)/Main_Graphs_Table[[#This Row],[tB]]) / Main_Graphs_Table[[#This Row],[RN]]^2 + ('Basic Analysis'!urel_D)^2 +urelDF('Basic Analysis'!λ, 'Basic Analysis'!urel_T.12, ('Basic Analysis'!t.D)*('Basic Analysis'!F.t.D), Main_Graphs_Table[[#This Row],[tS]])^ 2) -> 0.4038072827 | H8: ='Basic Analysis'!φ.MR -> 0.1 | I8: =((1.645^2)/Main_Graphs_Table[[#This Row],[tS]] + 2*1.645*SQRT('Basic Analysis'!R.B/Main_Graphs_Table[[#This Row],[tS]] + 'Basic Analysis'!R.B/Main_Graphs_Table[[#This Row],[tB]])) / (('Basic Analysis'!D) * Main_Graphs_Table[[#This Row],[DF]] * ('Basic Analysis'!F.A)) -> 5.337181047 | J8: ='Basic Analysis'!MDC.R -> 1
A9: 6 | B9: =IF(Paired, Main_Graphs_Table[[#This Row],[tS]], 'Basic Analysis'!t.B) -> 3000 | C9: =DDCf( ('Basic Analysis'!λ) * Main_Graphs_Table[[#This Row],[tS]]) -> 0.9943857689 | D9: =('Basic Analysis'!DBC) * Main_Graphs_Table[[#This Row],[DDC]] -> 0.5659982214 | E9: =('Basic Analysis'!AAL) * ('Basic Analysis'!D) * Main_Graphs_Table[[#This Row],[DF]] * ('Basic Analysis'!F.A) -> 1.884774077 | F9: =Main_Graphs_Table[[#This Row],[RN]] + ('Basic Analysis'!R.B) -> 2.884774077 | G9: =SQRT( (Main_Graphs_Table[[#This Row],[RS]]/Main_Graphs_Table[[#This Row],[tS]] + ('Basic Analysis'!R.B)/Main_Graphs_Table[[#This Row],[tB]]) / Main_Graphs_Table[[#This Row],[RN]]^2 + ('Basic Analysis'!urel_D)^2 +urelDF('Basic Analysis'!λ, 'Basic Analysis'!urel_T.12, ('Basic Analysis'!t.D)*('Basic Analysis'!F.t.D), Main_Graphs_Table[[#This Row],[tS]])^ 2) -> 0.3690480474 | H9: ='Basic Analysis'!φ.MR -> 0.1 | I9: =((1.645^2)/Main_Graphs_Table[[#This Row],[tS]] + 2*1.645*SQRT('Basic Analysis'!R.B/Main_Graphs_Table[[#This Row],[tS]] + 'Basic Analysis'!R.B/Main_Graphs_Table[[#This Row],[tB]])) / (('Basic Analysis'!D) * Main_Graphs_Table[[#This Row],[DF]] * ('Basic Analysis'!F.A)) -> 4.7631266 | J9: ='Basic Analysis'!MDC.R -> 1
A10: 7 | B10: =IF(Paired, Main_Graphs_Table[[#This Row],[tS]], 'Basic Analysis'!t.B) -> 3000 | C10: =DDCf( ('Basic Analysis'!λ) * Main_Graphs_Table[[#This Row],[tS]]) -> 0.9934541554 | D10: =('Basic Analysis'!DBC) * Main_Graphs_Table[[#This Row],[DDC]] -> 0.5654679527 | E10: =('Basic Analysis'!AAL) * ('Basic Analysis'!D) * Main_Graphs_Table[[#This Row],[DF]] * ('Basic Analysis'!F.A) -> 1.883008283 | F10: =Main_Graphs_Table[[#This Row],[RN]] + ('Basic Analysis'!R.B) -> 2.883008283 | G10: =SQRT( (Main_Graphs_Table[[#This Row],[RS]]/Main_Graphs_Table[[#This Row],[tS]] + ('Basic Analysis'!R.B)/Main_Graphs_Table[[#This Row],[tB]]) / Main_Graphs_Table[[#This Row],[RN]]^2 + ('Basic Analysis'!urel_D)^2 +urelDF('Basic Analysis'!λ, 'Basic Analysis'!urel_T.12, ('Basic Analysis'!t.D)*('Basic Analysis'!F.t.D), Main_Graphs_Table[[#This Row],[tS]])^ 2) -> 0.3420646276 | H10: ='Basic Analysis'!φ.MR -> 0.1 | I10: =((1.645^2)/Main_Graphs_Table[[#This Row],[tS]] + 2*1.645*SQRT('Basic Analysis'!R.B/Main_Graphs_Table[[#This Row],[tS]] + 'Basic Analysis'!R.B/Main_Graphs_Table[[#This Row],[tB]])) / (('Basic Analysis'!D) * Main_Graphs_Table[[#This Row],[DF]] * ('Basic Analysis'!F.A)) -> 4.332238046 | J10: ='Basic Analysis'!MDC.R -> 1
A11: 8 | B11: =IF(Paired, Main_Graphs_Table[[#This Row],[tS]], 'Basic Analysis'!t.B) -> 3000 | C11: =DDCf( ('Basic Analysis'!λ) * Main_Graphs_Table[[#This Row],[tS]]) -> 0.9925237065 | D11: =('Basic Analysis'!DBC) * Main_Graphs_Table[[#This Row],[DDC]] -> 0.564938347 | E11: =('Basic Analysis'!AAL) * ('Basic Analysis'!D) * Main_Graphs_Table[[#This Row],[DF]] * ('Basic Analysis'!F.A) -> 1.881244695 | F11: =Main_Graphs_Table[[#This Row],[RN]] + ('Basic Analysis'!R.B) -> 2.881244695 | G11: =SQRT( (Main_Graphs_Table[[#This Row],[RS]]/Main_Graphs_Table[[#This Row],[tS]] + ('Basic Analysis'!R.B)/Main_Graphs_Table[[#This Row],[tB]]) / Main_Graphs_Table[[#This Row],[RN]]^2 + ('Basic Analysis'!urel_D)^2 +urelDF('Basic Analysis'!λ, 'Basic Analysis'!urel_T.12, ('Basic Analysis'!t.D)*('Basic Analysis'!F.t.D), Main_Graphs_Table[[#This Row],[tS]])^ 2) -> 0.3203392158 | H11: ='Basic Analysis'!φ.MR -> 0.1 | I11: =((1.645^2)/Main_Graphs_Table[[#This Row],[tS]] + 2*1.645*SQRT('Basic Analysis'!R.B/Main_Graphs_Table[[#This Row],[tS]] + 'Basic Analysis'!R.B/Main_Graphs_Table[[#This Row],[tB]])) / (('Basic Analysis'!D) * Main_Graphs_Table[[#This Row],[DF]] * ('Basic Analysis'!F.A)) -> 3.994678821 | J11: ='Basic Analysis'!MDC.R -> 1
A12: 9 | B12: =IF(Paired, Main_Graphs_Table[[#This Row],[tS]], 'Basic Analysis'!t.B) -> 3000 | C12: =DDCf( ('Basic Analysis'!λ) * Main_Graphs_Table[[#This Row],[tS]]) -> 0.9915944206 | D12: =('Basic Analysis'!DBC) * Main_Graphs_Table[[#This Row],[DDC]] -> 0.5644094032 | E12: =('Basic Analysis'!AAL) * ('Basic Analysis'!D) * Main_Graphs_Table[[#This Row],[DF]] * ('Basic Analysis'!F.A) -> 1.879483313 | F12: =Main_Graphs_Table[[#This Row],[RN]] + ('Basic Analysis'!R.B) -> 2.879483313 | G12: =SQRT( (Main_Graphs_Table[[#This Row],[RS]]/Main_Graphs_Table[[#This Row],[tS]] + ('Basic Analysis'!R.B)/Main_Graphs_Table[[#This Row],[tB]]) / Main_Graphs_Table[[#This Row],[RN]]^2 + ('Basic Analysis'!urel_D)^2 +urelDF('Basic Analysis'!λ, 'Basic Analysis'!urel_T.12, ('Basic Analysis'!t.D)*('Basic Analysis'!F.t.D), Main_Graphs_Table[[#This Row],[tS]])^ 2) -> 0.3023646597 | H12: ='Basic Analysis'!φ.MR -> 0.1 | I12: =((1.645^2)/Main_Graphs_Table[[#This Row],[tS]] + 2*1.645*SQRT('Basic Analysis'!R.B/Main_Graphs_Table[[#This Row],[tS]] + 'Basic Analysis'!R.B/Main_Graphs_Table[[#This Row],[tB]])) / (('Basic Analysis'!D) * Main_Graphs_Table[[#This Row],[DF]] * ('Basic Analysis'!F.A)) -> 3.721714021 | J12: ='Basic Analysis'!MDC.R -> 1
A13: 10 | B13: =IF(Paired, Main_Graphs_Table[[#This Row],[tS]], 'Basic Analysis'!t.B) -> 3000 | C13: =DDCf( ('Basic Analysis'!λ) * Main_Graphs_Table[[#This Row],[tS]]) -> 0.9906662961 | D13: =('Basic Analysis'!DBC) * Main_Graphs_Table[[#This Row],[DDC]] -> 0.5638811205 | E13: =('Basic Analysis'!AAL) * ('Basic Analysis'!D) * Main_Graphs_Table[[#This Row],[DF]] * ('Basic Analysis'!F.A) -> 1.877724131 | F13: =Main_Graphs_Table[[#This Row],[RN]] + ('Basic Analysis'!R.B) -> 2.877724131 | G13: =SQRT( (Main_Graphs_Table[[#This Row],[RS]]/Main_Graphs_Table[[#This Row],[tS]] + ('Basic Analysis'!R.B)/Main_Graphs_Table[[#This Row],[tB]]) / Main_Graphs_Table[[#This Row],[RN]]^2 + ('Basic Analysis'!urel_D)^2 +urelDF('Basic Analysis'!λ, 'Basic Analysis'!urel_T.12, ('Basic Analysis'!t.D)*('Basic Analysis'!F.t.D), Main_Graphs_Table[[#This Row],[tS]])^ 2) -> 0.2871763939 | H13: ='Basic Analysis'!φ.MR -> 0.1 | I13: =((1.645^2)/Main_Graphs_Table[[#This Row],[tS]] + 2*1.645*SQRT('Basic Analysis'!R.B/Main_Graphs_Table[[#This Row],[tS]] + 'Basic Analysis'!R.B/Main_Graphs_Table[[#This Row],[tB]])) / (('Basic Analysis'!D) * Main_Graphs_Table[[#This Row],[DF]] * ('Basic Analysis'!F.A)) -> 3.495519837 | J13: ='Basic Analysis'!MDC.R -> 1
A14: 15 | B14: =IF(Paired, Main_Graphs_Table[[#This Row],[tS]], 'Basic Analysis'!t.B) -> 3000 | C14: =DDCf( ('Basic Analysis'!λ) * Main_Graphs_Table[[#This Row],[tS]]) -> 0.986043037 | D14: =('Basic Analysis'!DBC) * Main_Graphs_Table[[#This Row],[DDC]] -> 0.56124959 | E14: =('Basic Analysis'!AAL) * ('Basic Analysis'!D) * Main_Graphs_Table[[#This Row],[DF]] * ('Basic Analysis'!F.A) -> 1.868961135 | F14: =Main_Graphs_Table[[#This Row],[RN]] + ('Basic Analysis'!R.B) -> 2.868961135 | G14: =SQRT( (Main_Graphs_Table[[#This Row],[RS]]/Main_Graphs_Table[[#This Row],[tS]] + ('Basic Analysis'!R.B)/Main_Graphs_Table[[#This Row],[tB]]) / Main_Graphs_Table[[#This Row],[RN]]^2 + ('Basic Analysis'!urel_D)^2 +urelDF('Basic Analysis'!λ, 'Basic Analysis'!urel_T.12, ('Basic Analysis'!t.D)*('Basic Analysis'!F.t.D), Main_Graphs_Table[[#This Row],[tS]])^ 2) -> 0.2358166895 | H14: ='Basic Analysis'!φ.MR -> 0.1 | I14: =((1.645^2)/Main_Graphs_Table[[#This Row],[tS]] + 2*1.645*SQRT('Basic Analysis'!R.B/Main_Graphs_Table[[#This Row],[tS]] + 'Basic Analysis'!R.B/Main_Graphs_Table[[#This Row],[tB]])) / (('Basic Analysis'!D) * Main_Graphs_Table[[#This Row],[DF]] * ('Basic Analysis'!F.A)) -> 2.760884195 | J14: ='Basic Analysis'!MDC.R -> 1
A15: 20 | B15: =IF(Paired, Main_Graphs_Table[[#This Row],[tS]], 'Basic Analysis'!t.B) -> 3000 | C15: =DDCf( ('Basic Analysis'!λ) * Main_Graphs_Table[[#This Row],[tS]]) -> 0.9814485684 | D15: =('Basic Analysis'!DBC) * Main_Graphs_Table[[#This Row],[DDC]] -> 0.5586344469 | E15: =('Basic Analysis'!AAL) * ('Basic Analysis'!D) * Main_Graphs_Table[[#This Row],[DF]] * ('Basic Analysis'!F.A) -> 1.860252708 | F15: =Main_Graphs_Table[[#This Row],[RN]] + ('Basic Analysis'!R.B) -> 2.860252708 | G15: =SQRT( (Main_Graphs_Table[[#This Row],[RS]]/Main_Graphs_Table[[#This Row],[tS]] + ('Basic Analysis'!R.B)/Main_Graphs_Table[[#This Row],[tB]]) / Main_Graphs_Table[[#This Row],[RN]]^2 + ('Basic Analysis'!urel_D)^2 +urelDF('Basic Analysis'!λ, 'Basic Analysis'!urel_T.12, ('Basic Analysis'!t.D)*('Basic Analysis'!F.t.D), Main_Graphs_Table[[#This Row],[tS]])^ 2) -> 0.2053803054 | H15: ='Basic Analysis'!φ.MR -> 0.1 | I15: =((1.645^2)/Main_Graphs_Table[[#This Row],[tS]] + 2*1.645*SQRT('Basic Analysis'!R.B/Main_Graphs_Table[[#This Row],[tS]] + 'Basic Analysis'!R.B/Main_Graphs_Table[[#This Row],[tB]])) / (('Basic Analysis'!D) * Main_Graphs_Table[[#This Row],[DF]] * ('Basic Analysis'!F.A)) -> 2.347572882 | J15: ='Basic Analysis'!MDC.R -> 1
A16: 30 | B16: =IF(Paired, Main_Graphs_Table[[#This Row],[tS]], 'Basic Analysis'!t.B) -> 3000 | C16: =DDCf( ('Basic Analysis'!λ) * Main_Graphs_Table[[#This Row],[tS]]) -> 0.9723451967 | D16: =('Basic Analysis'!DBC) * Main_Graphs_Table[[#This Row],[DDC]] -> 0.5534528641 | E16: =('Basic Analysis'!AAL) * ('Basic Analysis'!D) * Main_Graphs_Table[[#This Row],[DF]] * ('Basic Analysis'!F.A) -> 1.842998038 | F16: =Main_Graphs_Table[[#This Row],[RN]] + ('Basic Analysis'!R.B) -> 2.842998038 | G16: =SQRT( (Main_Graphs_Table[[#This Row],[RS]]/Main_Graphs_Table[[#This Row],[tS]] + ('Basic Analysis'!R.B)/Main_Graphs_Table[[#This Row],[tB]]) / Main_Graphs_Table[[#This Row],[RN]]^2 + ('Basic Analysis'!urel_D)^2 +urelDF('Basic Analysis'!λ, 'Basic Analysis'!urel_T.12, ('Basic Analysis'!t.D)*('Basic Analysis'!F.t.D), Main_Graphs_Table[[#This Row],[tS]])^ 2) -> 0.1695775548 | H16: ='Basic Analysis'!φ.MR -> 0.1 | I16: =((1.645^2)/Main_Graphs_Table[[#This Row],[tS]] + 2*1.645*SQRT('Basic Analysis'!R.B/Main_Graphs_Table[[#This Row],[tS]] + 'Basic Analysis'!R.B/Main_Graphs_Table[[#This Row],[tB]])) / (('Basic Analysis'!D) * Main_Graphs_Table[[#This Row],[DF]] * ('Basic Analysis'!F.A)) -> 1.88243765 | J16: ='Basic Analysis'!MDC.R -> 1
A17: 40 | B17: =IF(Paired, Main_Graphs_Table[[#This Row],[tS]], 'Basic Analysis'!t.B) -> 3000 | C17: =DDCf( ('Basic Analysis'!λ) * Main_Graphs_Table[[#This Row],[tS]]) -> 0.963354585 | D17: =('Basic Analysis'!DBC) * Main_Graphs_Table[[#This Row],[DDC]] -> 0.5483354637 | E17: =('Basic Analysis'!AAL) * ('Basic Analysis'!D) * Main_Graphs_Table[[#This Row],[DF]] * ('Basic Analysis'!F.A) -> 1.825957094 | F17: =Main_Graphs_Table[[#This Row],[RN]] + ('Basic Analysis'!R.B) -> 2.825957094 | G17: =SQRT( (Main_Graphs_Table[[#This Row],[RS]]/Main_Graphs_Table[[#This Row],[tS]] + ('Basic Analysis'!R.B)/Main_Graphs_Table[[#This Row],[tB]]) / Main_Graphs_Table[[#This Row],[RN]]^2 + ('Basic Analysis'!urel_D)^2 +urelDF('Basic Analysis'!λ, 'Basic Analysis'!urel_T.12, ('Basic Analysis'!t.D)*('Basic Analysis'!F.t.D), Main_Graphs_Table[[#This Row],[tS]])^ 2) -> 0.1484865067 | H17: ='Basic Analysis'!φ.MR -> 0.1 | I17: =((1.645^2)/Main_Graphs_Table[[#This Row],[tS]] + 2*1.645*SQRT('Basic Analysis'!R.B/Main_Graphs_Table[[#This Row],[tS]] + 'Basic Analysis'!R.B/Main_Graphs_Table[[#This Row],[tB]])) / (('Basic Analysis'!D) * Main_Graphs_Table[[#This Row],[DF]] * ('Basic Analysis'!F.A)) -> 1.619155738 | J17: ='Basic Analysis'!MDC.R -> 1
A18: 50 | B18: =IF(Paired, Main_Graphs_Table[[#This Row],[tS]], 'Basic Analysis'!t.B) -> 3000 | C18: =DDCf( ('Basic Analysis'!λ) * Main_Graphs_Table[[#This Row],[tS]]) -> 0.954475161 | D18: =('Basic Analysis'!DBC) * Main_Graphs_Table[[#This Row],[DDC]] -> 0.5432813505 | E18: =('Basic Analysis'!AAL) * ('Basic Analysis'!D) * Main_Graphs_Table[[#This Row],[DF]] * ('Basic Analysis'!F.A) -> 1.809126897 | F18: =Main_Graphs_Table[[#This Row],[RN]] + ('Basic Analysis'!R.B) -> 2.809126897 | G18: =SQRT( (Main_Graphs_Table[[#This Row],[RS]]/Main_Graphs_Table[[#This Row],[tS]] + ('Basic Analysis'!R.B)/Main_Graphs_Table[[#This Row],[tB]]) / Main_Graphs_Table[[#This Row],[RN]]^2 + ('Basic Analysis'!urel_D)^2 +urelDF('Basic Analysis'!λ, 'Basic Analysis'!urel_T.12, ('Basic Analysis'!t.D)*('Basic Analysis'!F.t.D), Main_Graphs_Table[[#This Row],[tS]])^ 2) -> 0.134262663 | H18: ='Basic Analysis'!φ.MR -> 0.1 | I18: =((1.645^2)/Main_Graphs_Table[[#This Row],[tS]] + 2*1.645*SQRT('Basic Analysis'!R.B/Main_Graphs_Table[[#This Row],[tS]] + 'Basic Analysis'!R.B/Main_Graphs_Table[[#This Row],[tB]])) / (('Basic Analysis'!D) * Main_Graphs_Table[[#This Row],[DF]] * ('Basic Analysis'!F.A)) -> 1.4461618 | J18: ='Basic Analysis'!MDC.R -> 1
A19: 60 | B19: =IF(Paired, Main_Graphs_Table[[#This Row],[tS]], 'Basic Analysis'!t.B) -> 3000 | C19: =DDCf( ('Basic Analysis'!λ) * Main_Graphs_Table[[#This Row],[tS]]) -> 0.9457053758 | D19: =('Basic Analysis'!DBC) * Main_Graphs_Table[[#This Row],[DDC]] -> 0.5382896431 | E19: =('Basic Analysis'!AAL) * ('Basic Analysis'!D) * Main_Graphs_Table[[#This Row],[DF]] * ('Basic Analysis'!F.A) -> 1.792504511 | F19: =Main_Graphs_Table[[#This Row],[RN]] + ('Basic Analysis'!R.B) -> 2.792504511 | G19: =SQRT( (Main_Graphs_Table[[#This Row],[RS]]/Main_Graphs_Table[[#This Row],[tS]] + ('Basic Analysis'!R.B)/Main_Graphs_Table[[#This Row],[tB]]) / Main_Graphs_Table[[#This Row],[RN]]^2 + ('Basic Analysis'!urel_D)^2 +urelDF('Basic Analysis'!λ, 'Basic Analysis'!urel_T.12, ('Basic Analysis'!t.D)*('Basic Analysis'!F.t.D), Main_Graphs_Table[[#This Row],[tS]])^ 2) -> 0.1238869484 | H19: ='Basic Analysis'!φ.MR -> 0.1 | I19: =((1.645^2)/Main_Graphs_Table[[#This Row],[tS]] + 2*1.645*SQRT('Basic Analysis'!R.B/Main_Graphs_Table[[#This Row],[tS]] + 'Basic Analysis'!R.B/Main_Graphs_Table[[#This Row],[tB]])) / (('Basic Analysis'!D) * Main_Graphs_Table[[#This Row],[DF]] * ('Basic Analysis'!F.A)) -> 1.322350744 | J19: ='Basic Analysis'!MDC.R -> 1
A20: 70 | B20: =IF(Paired, Main_Graphs_Table[[#This Row],[tS]], 'Basic Analysis'!t.B) -> 3000 | C20: =DDCf( ('Basic Analysis'!λ) * Main_Graphs_Table[[#This Row],[tS]]) -> 0.9370437035 | D20: =('Basic Analysis'!DBC) * Main_Graphs_Table[[#This Row],[DDC]] -> 0.5333594729 | E20: =('Basic Analysis'!AAL) * ('Basic Analysis'!D) * Main_Graphs_Table[[#This Row],[DF]] * ('Basic Analysis'!F.A) -> 1.776087045 | F20: =Main_Graphs_Table[[#This Row],[RN]] + ('Basic Analysis'!R.B) -> 2.776087045 | G20: =SQRT( (Main_Graphs_Table[[#This Row],[RS]]/Main_Graphs_Table[[#This Row],[tS]] + ('Basic Analysis'!R.B)/Main_Graphs_Table[[#This Row],[tB]]) / Main_Graphs_Table[[#This Row],[RN]]^2 + ('Basic Analysis'!urel_D)^2 +urelDF('Basic Analysis'!λ, 'Basic Analysis'!urel_T.12, ('Basic Analysis'!t.D)*('Basic Analysis'!F.t.D), Main_Graphs_Table[[#This Row],[tS]])^ 2) -> 0.1159185589 | H20: ='Basic Analysis'!φ.MR -> 0.1 | I20: =((1.645^2)/Main_Graphs_Table[[#This Row],[tS]] + 2*1.645*SQRT('Basic Analysis'!R.B/Main_Graphs_Table[[#This Row],[tS]] + 'Basic Analysis'!R.B/Main_Graphs_Table[[#This Row],[tB]])) / (('Basic Analysis'!D) * Main_Graphs_Table[[#This Row],[DF]] * ('Basic Analysis'!F.A)) -> 1.228681178 | J20: ='Basic Analysis'!MDC.R -> 1
A21: 80 | B21: =IF(Paired, Main_Graphs_Table[[#This Row],[tS]], 'Basic Analysis'!t.B) -> 3000 | C21: =DDCf( ('Basic Analysis'!λ) * Main_Graphs_Table[[#This Row],[tS]]) -> 0.928488641 | D21: =('Basic Analysis'!DBC) * Main_Graphs_Table[[#This Row],[DDC]] -> 0.5284899843 | E21: =('Basic Analysis'!AAL) * ('Basic Analysis'!D) * Main_Graphs_Table[[#This Row],[DF]] * ('Basic Analysis'!F.A) -> 1.759871648 | F21: =Main_Graphs_Table[[#This Row],[RN]] + ('Basic Analysis'!R.B) -> 2.759871648 | G21: =SQRT( (Main_Graphs_Table[[#This Row],[RS]]/Main_Graphs_Table[[#This Row],[tS]] + ('Basic Analysis'!R.B)/Main_Graphs_Table[[#This Row],[tB]]) / Main_Graphs_Table[[#This Row],[RN]]^2 + ('Basic Analysis'!urel_D)^2 +urelDF('Basic Analysis'!λ, 'Basic Analysis'!urel_T.12, ('Basic Analysis'!t.D)*('Basic Analysis'!F.t.D), Main_Graphs_Table[[#This Row],[tS]])^ 2) -> 0.1095720611 | H21: ='Basic Analysis'!φ.MR -> 0.1 | I21: =((1.645^2)/Main_Graphs_Table[[#This Row],[tS]] + 2*1.645*SQRT('Basic Analysis'!R.B/Main_Graphs_Table[[#This Row],[tS]] + 'Basic Analysis'!R.B/Main_Graphs_Table[[#This Row],[tB]])) / (('Basic Analysis'!D) * Main_Graphs_Table[[#This Row],[DF]] * ('Basic Analysis'!F.A)) -> 1.155000907 | J21: ='Basic Analysis'!MDC.R -> 1
A22: 90 | B22: =IF(Paired, Main_Graphs_Table[[#This Row],[tS]], 'Basic Analysis'!t.B) -> 3000 | C22: =DDCf( ('Basic Analysis'!λ) * Main_Graphs_Table[[#This Row],[tS]]) -> 0.9200387074 | D22: =('Basic Analysis'!DBC) * Main_Graphs_Table[[#This Row],[DDC]] -> 0.5236803344 | E22: =('Basic Analysis'!AAL) * ('Basic Analysis'!D) * Main_Graphs_Table[[#This Row],[DF]] * ('Basic Analysis'!F.A) -> 1.743855513 | F22: =Main_Graphs_Table[[#This Row],[RN]] + ('Basic Analysis'!R.B) -> 2.743855513 | G22: =SQRT( (Main_Graphs_Table[[#This Row],[RS]]/Main_Graphs_Table[[#This Row],[tS]] + ('Basic Analysis'!R.B)/Main_Graphs_Table[[#This Row],[tB]]) / Main_Graphs_Table[[#This Row],[RN]]^2 + ('Basic Analysis'!urel_D)^2 +urelDF('Basic Analysis'!λ, 'Basic Analysis'!urel_T.12, ('Basic Analysis'!t.D)*('Basic Analysis'!F.t.D), Main_Graphs_Table[[#This Row],[tS]])^ 2) -> 0.1043783529 | H22: ='Basic Analysis'!φ.MR -> 0.1 | I22: =((1.645^2)/Main_Graphs_Table[[#This Row],[tS]] + 2*1.645*SQRT('Basic Analysis'!R.B/Main_Graphs_Table[[#This Row],[tS]] + 'Basic Analysis'!R.B/Main_Graphs_Table[[#This Row],[tB]])) / (('Basic Analysis'!D) * Main_Graphs_Table[[#This Row],[DF]] * ('Basic Analysis'!F.A)) -> 1.095351359 | J22: ='Basic Analysis'!MDC.R -> 1
A23: 100 | B23: =IF(Paired, Main_Graphs_Table[[#This Row],[tS]], 'Basic Analysis'!t.B) -> 3000 | C23: =DDCf( ('Basic Analysis'!λ) * Main_Graphs_Table[[#This Row],[tS]]) -> 0.9116924437 | D23: =('Basic Analysis'!DBC) * Main_Graphs_Table[[#This Row],[DDC]] -> 0.5189296927 | E23: =('Basic Analysis'!AAL) * ('Basic Analysis'!D) * Main_Graphs_Table[[#This Row],[DF]] * ('Basic Analysis'!F.A) -> 1.728035877 | F23: =Main_Graphs_Table[[#This Row],[RN]] + ('Basic Analysis'!R.B) -> 2.728035877 | G23: =SQRT( (Main_Graphs_Table[[#This Row],[RS]]/Main_Graphs_Table[[#This Row],[tS]] + ('Basic Analysis'!R.B)/Main_Graphs_Table[[#This Row],[tB]]) / Main_Graphs_Table[[#This Row],[RN]]^2 + ('Basic Analysis'!urel_D)^2 +urelDF('Basic Analysis'!λ, 'Basic Analysis'!urel_T.12, ('Basic Analysis'!t.D)*('Basic Analysis'!F.t.D), Main_Graphs_Table[[#This Row],[tS]])^ 2) -> 0.1000378898 | H23: ='Basic Analysis'!φ.MR -> 0.1 | I23: =((1.645^2)/Main_Graphs_Table[[#This Row],[tS]] + 2*1.645*SQRT('Basic Analysis'!R.B/Main_Graphs_Table[[#This Row],[tS]] + 'Basic Analysis'!R.B/Main_Graphs_Table[[#This Row],[tB]])) / (('Basic Analysis'!D) * Main_Graphs_Table[[#This Row],[DF]] * ('Basic Analysis'!F.A)) -> 1.045981278 | J23: ='Basic Analysis'!MDC.R -> 1
A24: 150 | B24: =IF(Paired, Main_Graphs_Table[[#This Row],[tS]], 'Basic Analysis'!t.B) -> 3000 | C24: =DDCf( ('Basic Analysis'!λ) * Main_Graphs_Table[[#This Row],[tS]]) -> 0.8714666092 | D24: =('Basic Analysis'!DBC) * Main_Graphs_Table[[#This Row],[DDC]] -> 0.4960333969 | E24: =('Basic Analysis'!AAL) * ('Basic Analysis'!D) * Main_Graphs_Table[[#This Row],[DF]] * ('Basic Analysis'!F.A) -> 1.651791212 | F24: =Main_Graphs_Table[[#This Row],[RN]] + ('Basic Analysis'!R.B) -> 2.651791212 | G24: =SQRT( (Main_Graphs_Table[[#This Row],[RS]]/Main_Graphs_Table[[#This Row],[tS]] + ('Basic Analysis'!R.B)/Main_Graphs_Table[[#This Row],[tB]]) / Main_Graphs_Table[[#This Row],[RN]]^2 + ('Basic Analysis'!urel_D)^2 +urelDF('Basic Analysis'!λ, 'Basic Analysis'!urel_T.12, ('Basic Analysis'!t.D)*('Basic Analysis'!F.t.D), Main_Graphs_Table[[#This Row],[tS]])^ 2) -> 0.08580910419 | H24: ='Basic Analysis'!φ.MR -> 0.1 | I24: =((1.645^2)/Main_Graphs_Table[[#This Row],[tS]] + 2*1.645*SQRT('Basic Analysis'!R.B/Main_Graphs_Table[[#This Row],[tS]] + 'Basic Analysis'!R.B/Main_Graphs_Table[[#This Row],[tB]])) / (('Basic Analysis'!D) * Main_Graphs_Table[[#This Row],[DF]] * ('Basic Analysis'!F.A)) -> 0.887828054 | J24: ='Basic Analysis'!MDC.R -> 1
A25: 200 | B25: =IF(Paired, Main_Graphs_Table[[#This Row],[tS]], 'Basic Analysis'!t.B) -> 3000 | C25: =DDCf( ('Basic Analysis'!λ) * Main_Graphs_Table[[#This Row],[tS]]) -> 0.8336257458 | D25: =('Basic Analysis'!DBC) * Main_Graphs_Table[[#This Row],[DDC]] -> 0.4744946118 | E25: =('Basic Analysis'!AAL) * ('Basic Analysis'!D) * Main_Graphs_Table[[#This Row],[DF]] * ('Basic Analysis'!F.A) -> 1.580067057 | F25: =Main_Graphs_Table[[#This Row],[RN]] + ('Basic Analysis'!R.B) -> 2.580067057 | G25: =SQRT( (Main_Graphs_Table[[#This Row],[RS]]/Main_Graphs_Table[[#This Row],[tS]] + ('Basic Analysis'!R.B)/Main_Graphs_Table[[#This Row],[tB]]) / Main_Graphs_Table[[#This Row],[RN]]^2 + ('Basic Analysis'!urel_D)^2 +urelDF('Basic Analysis'!λ, 'Basic Analysis'!urel_T.12, ('Basic Analysis'!t.D)*('Basic Analysis'!F.t.D), Main_Graphs_Table[[#This Row],[tS]])^ 2) -> 0.07786956352 | H25: ='Basic Analysis'!φ.MR -> 0.1 | I25: =((1.645^2)/Main_Graphs_Table[[#This Row],[tS]] + 2*1.645*SQRT('Basic Analysis'!R.B/Main_Graphs_Table[[#This Row],[tS]] + 'Basic Analysis'!R.B/Main_Graphs_Table[[#This Row],[tB]])) / (('Basic Analysis'!D) * Main_Graphs_Table[[#This Row],[DF]] * ('Basic Analysis'!F.A)) -> 0.8031233624 | J25: ='Basic Analysis'!MDC.R -> 1
A26: 300 | B26: =IF(Paired, Main_Graphs_Table[[#This Row],[tS]], 'Basic Analysis'!t.B) -> 3000 | C26: =DDCf( ('Basic Analysis'!λ) * Main_Graphs_Table[[#This Row],[tS]]) -> 0.7644720087 | D26: =('Basic Analysis'!DBC) * Main_Graphs_Table[[#This Row],[DDC]] -> 0.4351327329 | E26: =('Basic Analysis'!AAL) * ('Basic Analysis'!D) * Main_Graphs_Table[[#This Row],[DF]] * ('Basic Analysis'!F.A) -> 1.448992001 | F26: =Main_Graphs_Table[[#This Row],[RN]] + ('Basic Analysis'!R.B) -> 2.448992001 | G26: =SQRT( (Main_Graphs_Table[[#This Row],[RS]]/Main_Graphs_Table[[#This Row],[tS]] + ('Basic Analysis'!R.B)/Main_Graphs_Table[[#This Row],[tB]]) / Main_Graphs_Table[[#This Row],[RN]]^2 + ('Basic Analysis'!urel_D)^2 +urelDF('Basic Analysis'!λ, 'Basic Analysis'!urel_T.12, ('Basic Analysis'!t.D)*('Basic Analysis'!F.t.D), Main_Graphs_Table[[#This Row],[tS]])^ 2) -> 0.06937429418 | H26: ='Basic Analysis'!φ.MR -> 0.1 | I26: =((1.645^2)/Main_Graphs_Table[[#This Row],[tS]] + 2*1.645*SQRT('Basic Analysis'!R.B/Main_Graphs_Table[[#This Row],[tS]] + 'Basic Analysis'!R.B/Main_Graphs_Table[[#This Row],[tB]])) / (('Basic Analysis'!D) * Main_Graphs_Table[[#This Row],[DF]] * ('Basic Analysis'!F.A)) -> 0.7185666882 | J26: ='Basic Analysis'!MDC.R -> 1
A27: 400 | B27: =IF(Paired, Main_Graphs_Table[[#This Row],[tS]], 'Basic Analysis'!t.B) -> 3000 | C27: =DDCf( ('Basic Analysis'!λ) * Main_Graphs_Table[[#This Row],[tS]]) -> 0.7030864297 | D27: =('Basic Analysis'!DBC) * Main_Graphs_Table[[#This Row],[DDC]] -> 0.4001924415 | E27: =('Basic Analysis'!AAL) * ('Basic Analysis'!D) * Main_Graphs_Table[[#This Row],[DF]] * ('Basic Analysis'!F.A) -> 1.33264083 | F27: =Main_Graphs_Table[[#This Row],[RN]] + ('Basic Analysis'!R.B) -> 2.33264083 | G27: =SQRT( (Main_Graphs_Table[[#This Row],[RS]]/Main_Graphs_Table[[#This Row],[tS]] + ('Basic Analysis'!R.B)/Main_Graphs_Table[[#This Row],[tB]]) / Main_Graphs_Table[[#This Row],[RN]]^2 + ('Basic Analysis'!urel_D)^2 +urelDF('Basic Analysis'!λ, 'Basic Analysis'!urel_T.12, ('Basic Analysis'!t.D)*('Basic Analysis'!F.t.D), Main_Graphs_Table[[#This Row],[tS]])^ 2) -> 0.06511789532 | H27: ='Basic Analysis'!φ.MR -> 0.1 | I27: =((1.645^2)/Main_Graphs_Table[[#This Row],[tS]] + 2*1.645*SQRT('Basic Analysis'!R.B/Main_Graphs_Table[[#This Row],[tS]] + 'Basic Analysis'!R.B/Main_Graphs_Table[[#This Row],[tB]])) / (('Basic Analysis'!D) * Main_Graphs_Table[[#This Row],[DF]] * ('Basic Analysis'!F.A)) -> 0.6824370129 | J27: ='Basic Analysis'!MDC.R -> 1
A28: 500 | B28: =IF(Paired, Main_Graphs_Table[[#This Row],[tS]], 'Basic Analysis'!t.B) -> 3000 | C28: =DDCf( ('Basic Analysis'!λ) * Main_Graphs_Table[[#This Row],[tS]]) -> 0.64848105 | D28: =('Basic Analysis'!DBC) * Main_Graphs_Table[[#This Row],[DDC]] -> 0.3691113975 | E28: =('Basic Analysis'!AAL) * ('Basic Analysis'!D) * Main_Graphs_Table[[#This Row],[DF]] * ('Basic Analysis'!F.A) -> 1.229140954 | F28: =Main_Graphs_Table[[#This Row],[RN]] + ('Basic Analysis'!R.B) -> 2.229140954 | G28: =SQRT( (Main_Graphs_Table[[#This Row],[RS]]/Main_Graphs_Table[[#This Row],[tS]] + ('Basic Analysis'!R.B)/Main_Graphs_Table[[#This Row],[tB]]) / Main_Graphs_Table[[#This Row],[RN]]^2 + ('Basic Analysis'!urel_D)^2 +urelDF('Basic Analysis'!λ, 'Basic Analysis'!urel_T.12, ('Basic Analysis'!t.D)*('Basic Analysis'!F.t.D), Main_Graphs_Table[[#This Row],[tS]])^ 2) -> 0.06279779114 | H28: ='Basic Analysis'!φ.MR -> 0.1 | I28: =((1.645^2)/Main_Graphs_Table[[#This Row],[tS]] + 2*1.645*SQRT('Basic Analysis'!R.B/Main_Graphs_Table[[#This Row],[tS]] + 'Basic Analysis'!R.B/Main_Graphs_Table[[#This Row],[tB]])) / (('Basic Analysis'!D) * Main_Graphs_Table[[#This Row],[DF]] * ('Basic Analysis'!F.A)) -> 0.6684918756 | J28: ='Basic Analysis'!MDC.R -> 1
A29: 600 | B29: =IF(Paired, Main_Graphs_Table[[#This Row],[tS]], 'Basic Analysis'!t.B) -> 3000 | C29: =DDCf( ('Basic Analysis'!λ) * Main_Graphs_Table[[#This Row],[tS]]) -> 0.5998023708 | D29: =('Basic Analysis'!DBC) * Main_Graphs_Table[[#This Row],[DDC]] -> 0.3414037949 | E29: =('Basic Analysis'!AAL) * ('Basic Analysis'!D) * Main_Graphs_Table[[#This Row],[DF]] * ('Basic Analysis'!F.A) -> 1.136874637 | F29: =Main_Graphs_Table[[#This Row],[RN]] + ('Basic Analysis'!R.B) -> 2.136874637 | G29: =SQRT( (Main_Graphs_Table[[#This Row],[RS]]/Main_Graphs_Table[[#This Row],[tS]] + ('Basic Analysis'!R.B)/Main_Graphs_Table[[#This Row],[tB]]) / Main_Graphs_Table[[#This Row],[RN]]^2 + ('Basic Analysis'!urel_D)^2 +urelDF('Basic Analysis'!λ, 'Basic Analysis'!urel_T.12, ('Basic Analysis'!t.D)*('Basic Analysis'!F.t.D), Main_Graphs_Table[[#This Row],[tS]])^ 2) -> 0.06154946647 | H29: ='Basic Analysis'!φ.MR -> 0.1 | I29: =((1.645^2)/Main_Graphs_Table[[#This Row],[tS]] + 2*1.645*SQRT('Basic Analysis'!R.B/Main_Graphs_Table[[#This Row],[tS]] + 'Basic Analysis'!R.B/Main_Graphs_Table[[#This Row],[tB]])) / (('Basic Analysis'!D) * Main_Graphs_Table[[#This Row],[DF]] * ('Basic Analysis'!F.A)) -> 0.6669306785 | J29: ='Basic Analysis'!MDC.R -> 1
A30: 700 | B30: =IF(Paired, Main_Graphs_Table[[#This Row],[tS]], 'Basic Analysis'!t.B) -> 3000 | C30: =DDCf( ('Basic Analysis'!λ) * Main_Graphs_Table[[#This Row],[tS]]) -> 0.5563122561 | D30: =('Basic Analysis'!DBC) * Main_Graphs_Table[[#This Row],[DDC]] -> 0.3166494909 | E30: =('Basic Analysis'!AAL) * ('Basic Analysis'!D) * Main_Graphs_Table[[#This Row],[DF]] * ('Basic Analysis'!F.A) -> 1.054442805 | F30: =Main_Graphs_Table[[#This Row],[RN]] + ('Basic Analysis'!R.B) -> 2.054442805 | G30: =SQRT( (Main_Graphs_Table[[#This Row],[RS]]/Main_Graphs_Table[[#This Row],[tS]] + ('Basic Analysis'!R.B)/Main_Graphs_Table[[#This Row],[tB]]) / Main_Graphs_Table[[#This Row],[RN]]^2 + ('Basic Analysis'!urel_D)^2 +urelDF('Basic Analysis'!λ, 'Basic Analysis'!urel_T.12, ('Basic Analysis'!t.D)*('Basic Analysis'!F.t.D), Main_Graphs_Table[[#This Row],[tS]])^ 2) -> 0.06096944873 | H30: ='Basic Analysis'!φ.MR -> 0.1 | I30: =((1.645^2)/Main_Graphs_Table[[#This Row],[tS]] + 2*1.645*SQRT('Basic Analysis'!R.B/Main_Graphs_Table[[#This Row],[tS]] + 'Basic Analysis'!R.B/Main_Graphs_Table[[#This Row],[tB]])) / (('Basic Analysis'!D) * Main_Graphs_Table[[#This Row],[DF]] * ('Basic Analysis'!F.A)) -> 0.673169097 | J30: ='Basic Analysis'!MDC.R -> 1
A31: 800 | B31: =IF(Paired, Main_Graphs_Table[[#This Row],[tS]], 'Basic Analysis'!t.B) -> 3000 | C31: =DDCf( ('Basic Analysis'!λ) * Main_Graphs_Table[[#This Row],[tS]]) -> 0.5173716267 | D31: =('Basic Analysis'!DBC) * Main_Graphs_Table[[#This Row],[DDC]] -> 0.2944847258 | E31: =('Basic Analysis'!AAL) * ('Basic Analysis'!D) * Main_Graphs_Table[[#This Row],[DF]] * ('Basic Analysis'!F.A) -> 0.980634137 | F31: =Main_Graphs_Table[[#This Row],[RN]] + ('Basic Analysis'!R.B) -> 1.980634137 | G31: =SQRT( (Main_Graphs_Table[[#This Row],[RS]]/Main_Graphs_Table[[#This Row],[tS]] + ('Basic Analysis'!R.B)/Main_Graphs_Table[[#This Row],[tB]]) / Main_Graphs_Table[[#This Row],[RN]]^2 + ('Basic Analysis'!urel_D)^2 +urelDF('Basic Analysis'!λ, 'Basic Analysis'!urel_T.12, ('Basic Analysis'!t.D)*('Basic Analysis'!F.t.D), Main_Graphs_Table[[#This Row],[tS]])^ 2) -> 0.06084194601 | H31: ='Basic Analysis'!φ.MR -> 0.1 | I31: =((1.645^2)/Main_Graphs_Table[[#This Row],[tS]] + 2*1.645*SQRT('Basic Analysis'!R.B/Main_Graphs_Table[[#This Row],[tS]] + 'Basic Analysis'!R.B/Main_Graphs_Table[[#This Row],[tB]])) / (('Basic Analysis'!D) * Main_Graphs_Table[[#This Row],[DF]] * ('Basic Analysis'!F.A)) -> 0.6847371268 | J31: ='Basic Analysis'!MDC.R -> 1
A32: 900 | B32: =IF(Paired, Main_Graphs_Table[[#This Row],[tS]], 'Basic Analysis'!t.B) -> 3000 | C32: =DDCf( ('Basic Analysis'!λ) * Main_Graphs_Table[[#This Row],[tS]]) -> 0.4824265328 | D32: =('Basic Analysis'!DBC) * Main_Graphs_Table[[#This Row],[DDC]] -> 0.2745941948 | E32: =('Basic Analysis'!AAL) * ('Basic Analysis'!D) * Main_Graphs_Table[[#This Row],[DF]] * ('Basic Analysis'!F.A) -> 0.9143986686 | F32: =Main_Graphs_Table[[#This Row],[RN]] + ('Basic Analysis'!R.B) -> 1.914398669 | G32: =SQRT( (Main_Graphs_Table[[#This Row],[RS]]/Main_Graphs_Table[[#This Row],[tS]] + ('Basic Analysis'!R.B)/Main_Graphs_Table[[#This Row],[tB]]) / Main_Graphs_Table[[#This Row],[RN]]^2 + ('Basic Analysis'!urel_D)^2 +urelDF('Basic Analysis'!λ, 'Basic Analysis'!urel_T.12, ('Basic Analysis'!t.D)*('Basic Analysis'!F.t.D), Main_Graphs_Table[[#This Row],[tS]])^ 2) -> 0.06103997539 | H32: ='Basic Analysis'!φ.MR -> 0.1 | I32: =((1.645^2)/Main_Graphs_Table[[#This Row],[tS]] + 2*1.645*SQRT('Basic Analysis'!R.B/Main_Graphs_Table[[#This Row],[tS]] + 'Basic Analysis'!R.B/Main_Graphs_Table[[#This Row],[tB]])) / (('Basic Analysis'!D) * Main_Graphs_Table[[#This Row],[DF]] * ('Basic Analysis'!F.A)) -> 0.7001646936 | J32: ='Basic Analysis'!MDC.R -> 1
A33: 1000 | B33: =IF(Paired, Main_Graphs_Table[[#This Row],[tS]], 'Basic Analysis'!t.B) -> 3000 | C33: =DDCf( ('Basic Analysis'!λ) * Main_Graphs_Table[[#This Row],[tS]]) -> 0.4509962462 | D33: =('Basic Analysis'!DBC) * Main_Graphs_Table[[#This Row],[DDC]] -> 0.2567042703 | E33: =('Basic Analysis'!AAL) * ('Basic Analysis'!D) * Main_Graphs_Table[[#This Row],[DF]] * ('Basic Analysis'!F.A) -> 0.8548252201 | F33: =Main_Graphs_Table[[#This Row],[RN]] + ('Basic Analysis'!R.B) -> 1.85482522 | G33: =SQRT( (Main_Graphs_Table[[#This Row],[RS]]/Main_Graphs_Table[[#This Row],[tS]] + ('Basic Analysis'!R.B)/Main_Graphs_Table[[#This Row],[tB]]) / Main_Graphs_Table[[#This Row],[RN]]^2 + ('Basic Analysis'!urel_D)^2 +urelDF('Basic Analysis'!λ, 'Basic Analysis'!urel_T.12, ('Basic Analysis'!t.D)*('Basic Analysis'!F.t.D), Main_Graphs_Table[[#This Row],[tS]])^ 2) -> 0.06148322803 | H33: ='Basic Analysis'!φ.MR -> 0.1 | I33: =((1.645^2)/Main_Graphs_Table[[#This Row],[tS]] + 2*1.645*SQRT('Basic Analysis'!R.B/Main_Graphs_Table[[#This Row],[tS]] + 'Basic Analysis'!R.B/Main_Graphs_Table[[#This Row],[tB]])) / (('Basic Analysis'!D) * Main_Graphs_Table[[#This Row],[DF]] * ('Basic Analysis'!F.A)) -> 0.7185085114 | J33: ='Basic Analysis'!MDC.R -> 1
B39: Testing…
A40: n = | B40: 2
B41: x | C41: ddcn(x) | D41: test | E41: DDC1 | F41: DDC | G41: 0 | H41: 1 | I41: 2
B42: 0.001 | C42: =IFERROR((-1)^n*logamma(n+1,Testing_Table[[#This Row],[x]])/(Testing_Table[[#This Row],[x]]^(n+1)),"") -> 0.3330834333 | D42: =ddcnf(n,Testing_Table[[#This Row],[x]]) -> 0.3330834333 | E42: =DDC1f(Testing_Table[[#This Row],[x]]) -> -0.4996667916 | F42: =DDCf(Testing_Table[[#This Row],[x]]) -> 0.9995001666 | G42: =IFERROR(logamma(1,Testing_Table[[#This Row],[x]])/Testing_Table[[#This Row],[x]],"") -> 0.9995001666 | H42: =DDC1f(Testing_Table[[#This Row],[x]]) -> -0.4996667916 | I42: =ddc2f(Testing_Table[[#This Row],[x]]) -> 0.3330834333
B43: 0.01 | C43: =IFERROR((-1)^n*logamma(n+1,Testing_Table[[#This Row],[x]])/(Testing_Table[[#This Row],[x]]^(n+1)),"") -> 0.3308433056 | D43: =ddcnf(n,Testing_Table[[#This Row],[x]]) -> 0.3308433056 | E43: =DDC1f(Testing_Table[[#This Row],[x]]) -> -0.4966791334 | F43: =DDCf(Testing_Table[[#This Row],[x]]) -> 0.9950166251 | G43: =IFERROR(logamma(1,Testing_Table[[#This Row],[x]])/Testing_Table[[#This Row],[x]],"") -> 0.9950166251 | H43: =DDC1f(Testing_Table[[#This Row],[x]]) -> -0.4966791334 | I43: =ddc2f(Testing_Table[[#This Row],[x]]) -> 0.3308433056
B44: 0.05 | C44: =IFERROR((-1)^n*logamma(n+1,Testing_Table[[#This Row],[x]])/(Testing_Table[[#This Row],[x]]^(n+1)),"") -> 0.321079898 | D44: =ddcnf(n,Testing_Table[[#This Row],[x]]) -> 0.321079898 | E44: =DDC1f(Testing_Table[[#This Row],[x]]) -> -0.4836417097 | F44: =DDCf(Testing_Table[[#This Row],[x]]) -> 0.97541151 | G44: =IFERROR(logamma(1,Testing_Table[[#This Row],[x]])/Testing_Table[[#This Row],[x]],"") -> 0.97541151 | H44: =DDC1f(Testing_Table[[#This Row],[x]]) -> -0.4836417097 | I44: =ddc2f(Testing_Table[[#This Row],[x]]) -> 0.321079898
B45: 0.1 | C45: =IFERROR((-1)^n*logamma(n+1,Testing_Table[[#This Row],[x]])/(Testing_Table[[#This Row],[x]]^(n+1)),"") -> 0.3093061405 | D45: =ddcnf(n,Testing_Table[[#This Row],[x]]) -> 0.3093061405 | E45: =DDC1f(Testing_Table[[#This Row],[x]]) -> -0.467884016 | F45: =DDCf(Testing_Table[[#This Row],[x]]) -> 0.9516258196 | G45: =IFERROR(logamma(1,Testing_Table[[#This Row],[x]])/Testing_Table[[#This Row],[x]],"") -> 0.9516258196 | H45: =DDC1f(Testing_Table[[#This Row],[x]]) -> -0.467884016 | I45: =ddc2f(Testing_Table[[#This Row],[x]]) -> 0.3093061405
B46: 1 | C46: =IFERROR((-1)^n*logamma(n+1,Testing_Table[[#This Row],[x]])/(Testing_Table[[#This Row],[x]]^(n+1)),"") -> 0.1606027941 | D46: =ddcnf(n,Testing_Table[[#This Row],[x]]) -> 0.1606027941 | E46: =DDC1f(Testing_Table[[#This Row],[x]]) -> -0.2642411177 | F46: =DDCf(Testing_Table[[#This Row],[x]]) -> 0.6321205588 | G46: =IFERROR(logamma(1,Testing_Table[[#This Row],[x]])/Testing_Table[[#This Row],[x]],"") -> 0.6321205588 | H46: =DDC1f(Testing_Table[[#This Row],[x]]) -> -0.2642411177 | I46: =ddc2f(Testing_Table[[#This Row],[x]]) -> 0.1606027941
B47: 2 | C47: =IFERROR((-1)^n*logamma(n+1,Testing_Table[[#This Row],[x]])/(Testing_Table[[#This Row],[x]]^(n+1)),"") -> 0.08083089595 | D47: =ddcnf(n,Testing_Table[[#This Row],[x]]) -> 0.08083089595 | E47: =DDC1f(Testing_Table[[#This Row],[x]]) -> -0.1484985376 | F47: =DDCf(Testing_Table[[#This Row],[x]]) -> 0.4323323584 | G47: =IFERROR(logamma(1,Testing_Table[[#This Row],[x]])/Testing_Table[[#This Row],[x]],"") -> 0.4323323584 | H47: =DDC1f(Testing_Table[[#This Row],[x]]) -> -0.1484985376 | I47: =ddc2f(Testing_Table[[#This Row],[x]]) -> 0.08083089595
B48: 3 | C48: =IFERROR((-1)^n*logamma(n+1,Testing_Table[[#This Row],[x]])/(Testing_Table[[#This Row],[x]]^(n+1)),"") -> 0.04272666066 | D48: =ddcnf(n,Testing_Table[[#This Row],[x]]) -> 0.04272666066 | E48: =DDC1f(Testing_Table[[#This Row],[x]]) -> -0.08898352517 | F48: =DDCf(Testing_Table[[#This Row],[x]]) -> 0.3167376439 | G48: =IFERROR(logamma(1,Testing_Table[[#This Row],[x]])/Testing_Table[[#This Row],[x]],"") -> 0.3167376439 | H48: =DDC1f(Testing_Table[[#This Row],[x]]) -> -0.08898352517 | I48: =ddc2f(Testing_Table[[#This Row],[x]]) -> 0.04272666066
B49: 4 | C49: =IFERROR((-1)^n*logamma(n+1,Testing_Table[[#This Row],[x]])/(Testing_Table[[#This Row],[x]]^(n+1)),"") -> 0.0238092717 | D49: =ddcnf(n,Testing_Table[[#This Row],[x]]) -> 0.0238092717 | E49: =DDC1f(Testing_Table[[#This Row],[x]]) -> -0.05677636285 | F49: =DDCf(Testing_Table[[#This Row],[x]]) -> 0.2454210903 | G49: =IFERROR(logamma(1,Testing_Table[[#This Row],[x]])/Testing_Table[[#This Row],[x]],"") -> 0.2454210903 | H49: =DDC1f(Testing_Table[[#This Row],[x]]) -> -0.05677636285 | I49: =ddc2f(Testing_Table[[#This Row],[x]]) -> 0.0238092717
B50: 5 | C50: =IFERROR((-1)^n*logamma(n+1,Testing_Table[[#This Row],[x]])/(Testing_Table[[#This Row],[x]]^(n+1)),"") -> 0.01400556769 | D50: =ddcnf(n,Testing_Table[[#This Row],[x]]) -> 0.01400556769 | E50: =DDC1f(Testing_Table[[#This Row],[x]]) -> -0.03838289272 | F50: =DDCf(Testing_Table[[#This Row],[x]]) -> 0.1986524106 | G50: =IFERROR(logamma(1,Testing_Table[[#This Row],[x]])/Testing_Table[[#This Row],[x]],"") -> 0.1986524106 | H50: =DDC1f(Testing_Table[[#This Row],[x]]) -> -0.03838289272 | I50: =ddc2f(Testing_Table[[#This Row],[x]]) -> 0.01400556769
B51: 6 | C51: =IFERROR((-1)^n*logamma(n+1,Testing_Table[[#This Row],[x]])/(Testing_Table[[#This Row],[x]]^(n+1)),"") -> 0.008685474033 | D51: =ddcnf(n,Testing_Table[[#This Row],[x]]) -> 0.008685474033 | E51: =DDC1f(Testing_Table[[#This Row],[x]]) -> -0.02729579819 | F51: =DDCf(Testing_Table[[#This Row],[x]]) -> 0.1662535413 | G51: =IFERROR(logamma(1,Testing_Table[[#This Row],[x]])/Testing_Table[[#This Row],[x]],"") -> 0.1662535413 | H51: =DDC1f(Testing_Table[[#This Row],[x]]) -> -0.02729579819 | I51: =ddc2f(Testing_Table[[#This Row],[x]]) -> 0.008685474033
B52: 7 | C52: =IFERROR((-1)^n*logamma(n+1,Testing_Table[[#This Row],[x]])/(Testing_Table[[#This Row],[x]]^(n+1)),"") -> 0.00565809817 | D52: =ddcnf(n,Testing_Table[[#This Row],[x]]) -> 0.00565809817 | E52: =DDC1f(Testing_Table[[#This Row],[x]]) -> -0.02025928458 | F52: =DDCf(Testing_Table[[#This Row],[x]]) -> 0.142726874 | G52: =IFERROR(logamma(1,Testing_Table[[#This Row],[x]])/Testing_Table[[#This Row],[x]],"") -> 0.142726874 | H52: =DDC1f(Testing_Table[[#This Row],[x]]) -> -0.02025928458 | I52: =ddc2f(Testing_Table[[#This Row],[x]]) -> 0.00565809817
B53: 8 | C53: =IFERROR((-1)^n*logamma(n+1,Testing_Table[[#This Row],[x]])/(Testing_Table[[#This Row],[x]]^(n+1)),"") -> 0.003852523563 | D53: =ddcnf(n,Testing_Table[[#This Row],[x]]) -> 0.003852523563 | E53: =DDC1f(Testing_Table[[#This Row],[x]]) -> -0.01557782557 | F53: =DDCf(Testing_Table[[#This Row],[x]]) -> 0.1249580672 | G53: =IFERROR(logamma(1,Testing_Table[[#This Row],[x]])/Testing_Table[[#This Row],[x]],"") -> 0.1249580672 | H53: =DDC1f(Testing_Table[[#This Row],[x]]) -> -0.01557782557 | I53: =ddc2f(Testing_Table[[#This Row],[x]]) -> 0.003852523563
B54: 9 | C54: =IFERROR((-1)^n*logamma(n+1,Testing_Table[[#This Row],[x]])/(Testing_Table[[#This Row],[x]]^(n+1)),"") -> 0.002726386296 | D54: =ddcnf(n,Testing_Table[[#This Row],[x]]) -> 0.002726386296 | E54: =DDC1f(Testing_Table[[#This Row],[x]]) -> -0.01233044323 | F54: =DDCf(Testing_Table[[#This Row],[x]]) -> 0.1110973989 | G54: =IFERROR(logamma(1,Testing_Table[[#This Row],[x]])/Testing_Table[[#This Row],[x]],"") -> 0.1110973989 | H54: =DDC1f(Testing_Table[[#This Row],[x]]) -> -0.01233044323 | I54: =ddc2f(Testing_Table[[#This Row],[x]]) -> 0.002726386296
B55: 10 | C55: =IFERROR((-1)^n*logamma(n+1,Testing_Table[[#This Row],[x]])/(Testing_Table[[#This Row],[x]]^(n+1)),"") -> 0.001994461209 | D55: =ddcnf(n,Testing_Table[[#This Row],[x]]) -> 0.001994461209 | E55: =DDC1f(Testing_Table[[#This Row],[x]]) -> -0.009995006008 | F55: =DDCf(Testing_Table[[#This Row],[x]]) -> 0.09999546001 | G55: =IFERROR(logamma(1,Testing_Table[[#This Row],[x]])/Testing_Table[[#This Row],[x]],"") -> 0.09999546001 | H55: =DDC1f(Testing_Table[[#This Row],[x]]) -> -0.009995006008 | I55: =ddc2f(Testing_Table[[#This Row],[x]]) -> 0.001994461209
K65: Note: A semi-log plot is better than a linear plot. A log-log plot straightens the curve even more but may be less intuitive.

Sheet AlphaSpec
B1: Alpha-Particle Spectrometry with Tracer
B4: Result unit = | C4: pCi | D4: by | E4: =VLOOKUP(Unit_Result, ConcUnit_Table[],4,FALSE) -> Total | G4: Sample count time, tS = | H4: 99.96220653 | I4: min
B5: Analytical action level, AAL = | C5: 1.2
B6: Required relative method uncertainty, ϕMR = | C6: 0.2 | G6: ϕM = | H6: =IFERROR(SQRT( (R.SA/t.S+R.BA/t.B) / R.NA^2 + (R.ST/t.S+R.BT/t.B) / R.NT^2 + urel_V.A^2 + urel_I.A^2 + urel_DF.A^2 + urel_c.T^2 + urel_V.T^2 + urel_I.T^2 + urel_DF.T^2), "") -> 0.2 | I6: =IF(RAND()>0,"","") -> 
B7: Required detection limit, MDCR = | C7: 1 | G7: MDC = | H7: =IFERROR(getGSmdc(t.S, R.BA, 1/t.S+1/t.B, (F.Res*ε*Y*V.A*F.V.A*I.A*DF.A)), "") -> 0.186390774 | I7: =Unit_Result -> pCi
B8: Sample aliquot, VA = | C8: 1 | E8: =IF( IF(Unit_V.A="", Type1, VLOOKUP(Unit_V.A, Aliquot_Unit_Table[], 2, FALSE)) = Type_Res, Type_Res, "Mismatch") -> Total
B9: urel(VA) = | C9: 0.001 | G9: Half-life, T1/2(Analyte) = | H9: =VLOOKUP(Analyte, Nuclide_Table[], 2, FALSE) -> 138.3763 | I9: =VLOOKUP(Analyte,Nuclide_Table[],4,FALSE) -> d
B10: Analyte alpha intensity, IA = | C10: 1 | G10: urel(T1/2) = | H10: =VLOOKUP(Analyte, Nuclide_Table[], 3, FALSE) / T.12A -> 1.228534077e-05
B11: urel(IA) = | C11: 0 | G11: Half-life, T1/2(Tracer) = | H11: =VLOOKUP(Tracer, Nuclide_Table[], 2, FALSE) -> 102 | I11: =VLOOKUP(Tracer,Nuclide_Table[],4,FALSE) -> a
B12: Efficiency, ε = | C12: 0.15 | G12: urel(T1/2) = | H12: =VLOOKUP(Tracer, Nuclide_Table[], 3, FALSE) / T.12T -> 0.04901960784
B13: Yield, Y = | C13: 0.75 | G13: Analyte decay constant, λA = | H13: =IFERROR(VLOOKUP(Analyte, Nuclide_Table[], 5, FALSE), "") -> 3.478574067e-06 | I13: min−1
B14: Analyte background, RBA = | C14: 0.003 | D14: cpm | G14: Tracer decay constant, λT = | H14: =IFERROR(VLOOKUP(Tracer, Nuclide_Table[], 5, FALSE), "") -> 1.292057521e-08 | I14: min−1
B15: Background count time, tB = | C15: 3000 | D15: min | G15: Decay before counting, DBCA = | H15: =EXP(-λ.A * t.DA * F.t.DA) -> 0.9752653089
B16: Analyte decay time, tDA = | C16: 5 | D16: d | G16: Decay during counting, DDCA = | H16: =IFERROR(DDCf(λ.A * t.S), "") -> 0.9998261572
B17: Analyte = | C17: Po-210 | G17: Analyte decay factor, DFA = | H17: =IFERROR(DBC.A * DDC.A, "") -> 0.9750957661
B18: Tracer = | C18: Po-209 | G18: urel(DFA) = | H18: =IFERROR(urelDF(λ.A, urel_T.12A, t.DA * F.t.DA, t.S), "") -> 3.098312103e-07
B19: Tracer age, AgeT = | C19: 1 | D19: a | G19: Decay before counting, DBCT = | H19: =EXP(-λ.T * (Age.T * F.Age.T + t.DA * F.t.DA)) -> 0.9931350832
B20: Tracer concentration, cT = | C20: 20 | D20: dpm/g | E20: =VLOOKUP(Unit_c.T, ConcUnit_Table[],4,FALSE) -> Mass | G20: Decay during counting, DDCT = | H20: =IFERROR(DDCf(λ.T * t.S), "") -> 0.9999993542
B21: urel(cT) = | C21: 0.03 | G21: Tracer decay factor, DFT = | H21: =IFERROR(DBC.T * DDC.T, "") -> 0.9931344419
B22: Tracer amount, VT = | C22: 1 | D22: g | E22: =IF( IF(Unit_V.T="", Type1, VLOOKUP(Unit_V.T, Aliquot_Unit_Table[], 2, FALSE)) = Type_c.T, Type_c.T, "Mismatch") -> Mass | G22: urel(DFT) = | H22: =IFERROR(urelDF(λ.T, urel_T.12T, (Age.T * F.Age.T + t.DA * F.t.DA), t.S), "") -> 0.0003377075745
B23: urel(VT) = | C23: 0.005 | G23: Tracer activity, AT = | H23: =IF(Type_c.T=Type_V.T, (c.T*F.c.T) * (V.T*F.V.T), "") -> 20 | I23: dpm
B24: Tracer alpha intensity, IT = | C24: 1 | G24: urel(AT) = | H24: =IF(Type_c.T=Type_V.T, SQRT(urel_c.T^2 + urel_V.T^2), "") -> 0.03041381265
B25: urel(IT) = | C25: 0 | G25: Analyte net count rate, RNA = | H25: =IFERROR( (AAL*F.Res) * (V.A*F.V.A) * ε * Y * I.A * DF.A, "") -> 0.2922362011 | I25: cpm
B26: Tracer background, RBT = | C26: 0.001 | D26: cpm | G26: Tracer net count rate, RNT = | H26: =IFERROR(A.T * ε * Y * I.T * DF.T, "") -> 2.234552494 | I26: cpm
G27: Analyte gross count rate, RSA = | H27: =IFERROR(R.NA + R.BA, "") -> 0.2952362011 | I27: cpm
G28: Tracer gross count rate, RST = | H28: =IFERROR(R.NT + R.BT, "") -> 2.235552494 | I28: cpm
G29: Tracer gross counts, CST = | H29: =IFERROR(R.ST * t.S, "") -> 223.4707601 | I29: cpm
B30: Result unit factor, FRes = | C30: =VLOOKUP(Unit_Result, ConcUnit_Table[], 5, FALSE) * 60 -> 2.22 | D30: =IF(F.Res=1,"","(dpm/"&VLOOKUP(Unit_Result,ConcUnit_Table[],6,FALSE)&") / ("&Unit_Result&")") -> (dpm/1) / (pCi)
B31: Tracer concentration factor, Fc.T = | C31: =IF(Type_c.T=Type_V.T, VLOOKUP(Unit_c.T, ConcUnit_Table[], 5, FALSE) * 60, "") -> 1000 | D31: =IF(F.c.T=1,"","(dpm/"&VLOOKUP(Unit_c.T,ConcUnit_Table[],6,FALSE)&") / ("&Unit_c.T&")") -> (dpm/kg) / (dpm/g)
B32: Aliquot size factor, FV.A = | C32: =IF(Type_Res<>Type_V.A, "", IF(Unit_V.A="",1,VLOOKUP(Unit_V.A, Aliquot_Unit_Table[], 3, FALSE))) -> 1 | D32: =IFERROR(IF(F.V.A=1,"",VLOOKUP(Type_V.A,SI_Unit_Table[],2,FALSE) &"/"& Unit_V.A), "Error") ->  | H32: 6 | I32: iterations
B33: Tracer amount factor, FV.T = | C33: =IF(Type_c.T<>Type_V.T, "", IF(Unit_V.T="", 1, VLOOKUP(Unit_V.T, Aliquot_Unit_Table[], 3, FALSE))) -> 0.001 | D33: =IFERROR(IF(F.V.T=1,"",VLOOKUP(Type_V.T,SI_Unit_Table[],2,FALSE) &"/"& Unit_V.T), "Error") -> kg/g
B34: Decay time factor, Ft.DA = | C34: =VLOOKUP(Unit_t.DA, Time_Unit_Table[], 2, FALSE) / 60 -> 1440 | D34: =IF(Unit_t.DA="min","","min/"&Unit_t.DA) -> min/d
B35: Tracer age factor, FAge.T = | C35: =VLOOKUP(Unit_Age.T, Time_Unit_Table[], 2, FALSE) / 60 -> 525948.7667 | D35: =IF(Unit_Age.T="min","","min/"&Unit_Age.T) -> min/a

Sheet Gross αβ
B1: Gross α+β Analysis
B4: Result unit = | C4: pCi/L | D4: by | E4: =VLOOKUP(Unit_Result,ConcUnit_Table[],4,FALSE) -> Volume | H4: Sample count time, tS = | I4: =IF(OR(D<=0,Type_Res<>Type_V), "None", _xlfn.SWITCH(Option,1,t.Sα,2,t.Sβ,3,IF(OR(t.Sα="None",t.Sβ="None"),"None",MAX(t.Sα,t.Sβ)),t.S_std)) -> 100 | J4: min
B5: α activity concentration, ACα = | C5: 20 | H5: Alpha-to-beta cross-efficiency, εα→β = | I5: =ε.αα*X.αβ -> 0.01 | J5: ⓘ
B6: ϕMRα = | C6: 0.15 | D6: ⓘ | H6: Beta-to-alpha cross-efficiency, εβ→α = | I6: =ε.ββ*X.βα -> 0.0035 | J6: ⓘ
B7: β activity concentration, ACβ = | C7: 100 | H7: Result unit factor, FRes = | I7: =IF(Type_Res<>Type_V, "", VLOOKUP(Unit_Result,ConcUnit_Table[],5,FALSE)*60) -> 2220 | J7: =IF(F.Res=1,"","(dpm/"&VLOOKUP(Unit_Result,ConcUnit_Table[],6,FALSE)&") / ("&Unit_Result&")") -> (dpm/m3) / (pCi/L)
B8: ϕMRβ = | C8: 0.1 | D8: ⓘ | F8: 4 | H8: Aliquot size factor, FV = | I8: =IF(Type_Res<>Type_V, "", IF(Type_V=Type1, 1, VLOOKUP(Unit_V, Aliquot_Unit_Table[], 3, FALSE))) -> 0.001 | J8: =IFERROR(IF(F.V=1,"",VLOOKUP(Type_V,SI_Unit_Table[],2,FALSE) &"/"& Unit_V), "Error") -> m3/L
B9: Aliquot size, V = | C9: 1 | D9: L | E9: =IF(IF(Unit_V="", Type1, VLOOKUP(Unit_V,Aliquot_Unit_Table[],2,FALSE)) = Type_Res, Type_Res, "Mismatch") -> Volume | H9: Alpha net count rate, RNα = | I9: =IF(Type_Res=Type_V, IFERROR((AC.α*ε.αα + AC.β*ε.βα) * V * F.V * F.Res, ""), "") -> 5.217 | J9: cpm | K9: =IFERROR(IF(AND(Type_Res=Type_V, R.Nα > 100000), "High", ""), "") -> 
B10: Alpha efficiency, εα = | C10: 0.1 | D10: ⓘ | H10: Beta net count rate, RNβ = | I10: =IF(Type_Res=Type_V, IFERROR((AC.β*ε.ββ + AC.α*ε.αβ) * V * F.V * F.Res, ""), "") -> 78.144 | J10: cpm | K10: =IFERROR(IF(AND(Type_Res=Type_V, R.Nβ > 100000), "High", ""), "") -> 
B11: Beta efficiency, εβ = | C11: 0.35 | D11: ⓘ | H11: tSα = | I11: =IFERROR(IF(Test_α > 0, (F.ββ^2*R.Sα + F.βα^2*R.Sβ) / Test_α, "None"), "None") -> 12.03182241 | J11: min
B12: Alpha-to-beta crosstalk, Xα→β = | C12: 0.1 | D12: ⓘ | H12: tSβ = | I12: =IFERROR(IF(Test_β > 0, (F.αα^2*R.Sβ + F.αβ^2*R.Sα) / Test_β, "None"), "None") -> 1.314449375 | J12: min
B13: Beta-to-alpha crosstalk, Xβ→α = | C13: 0.01 | D13: ⓘ | H13: ϕMα = | I13: =IFERROR(SQRT((F.ββ^2)*(R.Sα/t.S+R.Bα/t.B) + (F.βα^2)*(R.Sβ/t.S+R.Bβ/t.B)) / (V*F.V*AC.α*F.Res), "") -> 0.05207336902
B14: Alpha background, RBα = | C14: 0.1 | D14: cpm ⓘ | F14: The MQOs are based on counting uncertainty only. | H14: ϕMβ = | I14: =IFERROR(SQRT((F.αα^2)*(R.Sβ/t.S+R.Bβ/t.B) + (F.αβ^2)*(R.Sα/t.S+R.Bα/t.B)) / (V*F.V*AC.β*F.Res), "") -> 0.01147209173
B15: Beta background, RBβ = | C15: 1 | D15: cpm ⓘ
B16: Background count time, tB = | C16: 1000 | D16: min
B17: Standard count time = | C17: 100 | D17: min ⓘ

Sheet Gross αβ Graph
A2: ACα = | B2: ='Gross αβ'!AC.α -> 20 | C2: ='Gross αβ'!Unit_Result -> pCi/L | D2: ACβ = | E2: ='Gross αβ'!AC.β -> 100 | F2: ='Gross αβ'!Unit_Result -> pCi/L | G2: tS | H2: u2(RNα) | I2: u2(RNβ) | J2: ϕMα | K2: ϕMβ | L2: ϕMRα | M2: ϕMRβ | N2: αMin | O2: βMin
A3: V = | B3: ='Gross αβ'!V -> 1 | C3: ='Gross αβ'!Unit_V -> L | G3: 1 | H3: =R.Sα/Table_Gross_αβ_Graphs[[#This Row],[tS]] + R.Bα/t.B -> 5.3171 | I3: =R.Sβ/Table_Gross_αβ_Graphs[[#This Row],[tS]] + R.Bβ/t.B -> 79.145 | J3: =IFERROR(SQRT(F.ββ^2*Table_Gross_αβ_Graphs[[#This Row],[u2(RNα)]] + F.βα^2*Table_Gross_αβ_Graphs[[#This Row],[u2(RNβ)]]) / (V*F.V*AC.α*F.Res), "None") -> 0.5202498205 | K3: =IFERROR(SQRT(F.αα^2*Table_Gross_αβ_Graphs[[#This Row],[u2(RNβ)]] + F.αβ^2*Table_Gross_αβ_Graphs[[#This Row],[u2(RNα)]]) / (V*F.V* AC.β*F.Res), "None") -> 0.1146492107 | L3: ='Gross αβ'!φMRα -> 0.15 | M3: ='Gross αβ'!φMRβ -> 0.1 | N3: =IFERROR(SQRT(F.ββ^2*(R.Bα/t.B) + F.βα^2*(R.Bβ/t.B)) / (V*F.V*AC.α*F.Res), "None") -> 0.002255633731 | O3: =IFERROR(SQRT(F.αα^2*(R.Bβ/t.B) + F.αβ^2*(R.Bα/t.B)) / (V*F.V*AC.β*F.Res), "None") -> 0.0004075965804
A4: FRes = | B4: ='Gross αβ'!F.Res -> 2220 | D4: FV = | E4: ='Gross αβ'!F.V -> 0.001 | G4: 2 | H4: =R.Sα/Table_Gross_αβ_Graphs[[#This Row],[tS]] + R.Bα/t.B -> 2.6586 | I4: =R.Sβ/Table_Gross_αβ_Graphs[[#This Row],[tS]] + R.Bβ/t.B -> 39.573 | J4: =IFERROR(SQRT(F.ββ^2*Table_Gross_αβ_Graphs[[#This Row],[u2(RNα)]] + F.βα^2*Table_Gross_αβ_Graphs[[#This Row],[u2(RNβ)]]) / (V*F.V*AC.α*F.Res), "None") -> 0.3678756336 | K4: =IFERROR(SQRT(F.αα^2*Table_Gross_αβ_Graphs[[#This Row],[u2(RNβ)]] + F.αβ^2*Table_Gross_αβ_Graphs[[#This Row],[u2(RNα)]]) / (V*F.V* AC.β*F.Res), "None") -> 0.08106974664 | L4: ='Gross αβ'!φMRα -> 0.15 | M4: ='Gross αβ'!φMRβ -> 0.1 | N4: 0.002255633731 | O4: 0.0004075965804
A5: tB = | B5: ='Gross αβ'!t.B -> 1000 | C5: min | G5: 5 | H5: =R.Sα/Table_Gross_αβ_Graphs[[#This Row],[tS]] + R.Bα/t.B -> 1.0635 | I5: =R.Sβ/Table_Gross_αβ_Graphs[[#This Row],[tS]] + R.Bβ/t.B -> 15.8298 | J5: =IFERROR(SQRT(F.ββ^2*Table_Gross_αβ_Graphs[[#This Row],[u2(RNα)]] + F.βα^2*Table_Gross_αβ_Graphs[[#This Row],[u2(RNβ)]]) / (V*F.V*AC.α*F.Res), "None") -> 0.2326715398 | K5: =IFERROR(SQRT(F.αα^2*Table_Gross_αβ_Graphs[[#This Row],[u2(RNβ)]] + F.αβ^2*Table_Gross_αβ_Graphs[[#This Row],[u2(RNα)]]) / (V*F.V* AC.β*F.Res), "None") -> 0.05127398179 | L5: ='Gross αβ'!φMRα -> 0.15 | M5: ='Gross αβ'!φMRβ -> 0.1 | N5: 0.002255633731 | O5: 0.0004075965804
A6: Fαα = | B6: ='Gross αβ'!F.αα -> 2.86000286 | D6: Fαβ = | E6: ='Gross αβ'!F.αβ -> 0.286000286 | G6: 10 | H6: =R.Sα/Table_Gross_αβ_Graphs[[#This Row],[tS]] + R.Bα/t.B -> 0.5318 | I6: =R.Sβ/Table_Gross_αβ_Graphs[[#This Row],[tS]] + R.Bβ/t.B -> 7.9154 | J6: =IFERROR(SQRT(F.ββ^2*Table_Gross_αβ_Graphs[[#This Row],[u2(RNα)]] + F.βα^2*Table_Gross_αβ_Graphs[[#This Row],[u2(RNβ)]]) / (V*F.V*AC.α*F.Res), "None") -> 0.1645313547 | K6: =IFERROR(SQRT(F.αα^2*Table_Gross_αβ_Graphs[[#This Row],[u2(RNβ)]] + F.αβ^2*Table_Gross_αβ_Graphs[[#This Row],[u2(RNα)]]) / (V*F.V* AC.β*F.Res), "None") -> 0.03625732577 | L6: ='Gross αβ'!φMRα -> 0.15 | M6: ='Gross αβ'!φMRβ -> 0.1 | N6: 0.002255633731 | O6: 0.0004075965804
A7: Fββ = | B7: ='Gross αβ'!F.ββ -> 10.01001001 | D7: Fβα = | E7: ='Gross αβ'!F.βα -> 0.1001001001 | G7: 20 | H7: =R.Sα/Table_Gross_αβ_Graphs[[#This Row],[tS]] + R.Bα/t.B -> 0.26595 | I7: =R.Sβ/Table_Gross_αβ_Graphs[[#This Row],[tS]] + R.Bβ/t.B -> 3.9582 | J7: =IFERROR(SQRT(F.ββ^2*Table_Gross_αβ_Graphs[[#This Row],[u2(RNα)]] + F.βα^2*Table_Gross_αβ_Graphs[[#This Row],[u2(RNβ)]]) / (V*F.V*AC.α*F.Res), "None") -> 0.1163521692 | K7: =IFERROR(SQRT(F.αα^2*Table_Gross_αβ_Graphs[[#This Row],[u2(RNβ)]] + F.αβ^2*Table_Gross_αβ_Graphs[[#This Row],[u2(RNα)]]) / (V*F.V* AC.β*F.Res), "None") -> 0.02563942089 | L7: ='Gross αβ'!φMRα -> 0.15 | M7: ='Gross αβ'!φMRβ -> 0.1 | N7: 0.002255633731 | O7: 0.0004075965804
A8: RBα = | B8: ='Gross αβ'!R.Bα -> 0.1 | C8: cpm | D8: RBβ = | E8: ='Gross αβ'!R.Bβ -> 1 | F8: cpm | G8: 50 | H8: =R.Sα/Table_Gross_αβ_Graphs[[#This Row],[tS]] + R.Bα/t.B -> 0.10644 | I8: =R.Sβ/Table_Gross_αβ_Graphs[[#This Row],[tS]] + R.Bβ/t.B -> 1.58388 | J8: =IFERROR(SQRT(F.ββ^2*Table_Gross_αβ_Graphs[[#This Row],[u2(RNα)]] + F.βα^2*Table_Gross_αβ_Graphs[[#This Row],[u2(RNβ)]]) / (V*F.V*AC.α*F.Res), "None") -> 0.0736083123 | K8: =IFERROR(SQRT(F.αα^2*Table_Gross_αβ_Graphs[[#This Row],[u2(RNβ)]] + F.αβ^2*Table_Gross_αβ_Graphs[[#This Row],[u2(RNα)]]) / (V*F.V* AC.β*F.Res), "None") -> 0.01621886686 | L8: ='Gross αβ'!φMRα -> 0.15 | M8: ='Gross αβ'!φMRβ -> 0.1 | N8: 0.002255633731 | O8: 0.0004075965804
A9: RSα = | B9: ='Gross αβ'!R.Sα -> 5.317 | C9: cpm | D9: RSβ = | E9: ='Gross αβ'!R.Sβ -> 79.144 | F9: cpm | G9: 100 | H9: =R.Sα/Table_Gross_αβ_Graphs[[#This Row],[tS]] + R.Bα/t.B -> 0.05327 | I9: =R.Sβ/Table_Gross_αβ_Graphs[[#This Row],[tS]] + R.Bβ/t.B -> 0.79244 | J9: =IFERROR(SQRT(F.ββ^2*Table_Gross_αβ_Graphs[[#This Row],[u2(RNα)]] + F.βα^2*Table_Gross_αβ_Graphs[[#This Row],[u2(RNβ)]]) / (V*F.V*AC.α*F.Res), "None") -> 0.05207336902 | K9: =IFERROR(SQRT(F.αα^2*Table_Gross_αβ_Graphs[[#This Row],[u2(RNβ)]] + F.αβ^2*Table_Gross_αβ_Graphs[[#This Row],[u2(RNα)]]) / (V*F.V* AC.β*F.Res), "None") -> 0.01147209173 | L9: ='Gross αβ'!φMRα -> 0.15 | M9: ='Gross αβ'!φMRβ -> 0.1 | N9: 0.002255633731 | O9: 0.0004075965804
G10: 200 | H10: =R.Sα/Table_Gross_αβ_Graphs[[#This Row],[tS]] + R.Bα/t.B -> 0.026685 | I10: =R.Sβ/Table_Gross_αβ_Graphs[[#This Row],[tS]] + R.Bβ/t.B -> 0.39672 | J10: =IFERROR(SQRT(F.ββ^2*Table_Gross_αβ_Graphs[[#This Row],[u2(RNα)]] + F.βα^2*Table_Gross_αβ_Graphs[[#This Row],[u2(RNβ)]]) / (V*F.V*AC.α*F.Res), "None") -> 0.03685596048 | K10: =IFERROR(SQRT(F.αα^2*Table_Gross_αβ_Graphs[[#This Row],[u2(RNβ)]] + F.αβ^2*Table_Gross_αβ_Graphs[[#This Row],[u2(RNα)]]) / (V*F.V* AC.β*F.Res), "None") -> 0.008117112283 | L10: ='Gross αβ'!φMRα -> 0.15 | M10: ='Gross αβ'!φMRβ -> 0.1 | N10: 0.002255633731 | O10: 0.0004075965804
G11: 500 | H11: =R.Sα/Table_Gross_αβ_Graphs[[#This Row],[tS]] + R.Bα/t.B -> 0.010734 | I11: =R.Sβ/Table_Gross_αβ_Graphs[[#This Row],[tS]] + R.Bβ/t.B -> 0.159288 | J11: =IFERROR(SQRT(F.ββ^2*Table_Gross_αβ_Graphs[[#This Row],[u2(RNα)]] + F.βα^2*Table_Gross_αβ_Graphs[[#This Row],[u2(RNβ)]]) / (V*F.V*AC.α*F.Res), "None") -> 0.02337514618 | K11: =IFERROR(SQRT(F.αα^2*Table_Gross_αβ_Graphs[[#This Row],[u2(RNβ)]] + F.αβ^2*Table_Gross_αβ_Graphs[[#This Row],[u2(RNα)]]) / (V*F.V* AC.β*F.Res), "None") -> 0.005143411875 | L11: ='Gross αβ'!φMRα -> 0.15 | M11: ='Gross αβ'!φMRβ -> 0.1 | N11: 0.002255633731 | O11: 0.0004075965804
G12: 1000 | H12: =R.Sα/Table_Gross_αβ_Graphs[[#This Row],[tS]] + R.Bα/t.B -> 0.005417 | I12: =R.Sβ/Table_Gross_αβ_Graphs[[#This Row],[tS]] + R.Bβ/t.B -> 0.080144 | J12: =IFERROR(SQRT(F.ββ^2*Table_Gross_αβ_Graphs[[#This Row],[u2(RNα)]] + F.βα^2*Table_Gross_αβ_Graphs[[#This Row],[u2(RNβ)]]) / (V*F.V*AC.α*F.Res), "None") -> 0.01660550124 | K12: =IFERROR(SQRT(F.αα^2*Table_Gross_αβ_Graphs[[#This Row],[u2(RNβ)]] + F.αβ^2*Table_Gross_αβ_Graphs[[#This Row],[u2(RNα)]]) / (V*F.V* AC.β*F.Res), "None") -> 0.003648343507 | L12: ='Gross αβ'!φMRα -> 0.15 | M12: ='Gross αβ'!φMRβ -> 0.1 | N12: 0.002255633731 | O12: 0.0004075965804
G13: 2000 | H13: =R.Sα/Table_Gross_αβ_Graphs[[#This Row],[tS]] + R.Bα/t.B -> 0.0027585 | I13: =R.Sβ/Table_Gross_αβ_Graphs[[#This Row],[tS]] + R.Bβ/t.B -> 0.040572 | J13: =IFERROR(SQRT(F.ββ^2*Table_Gross_αβ_Graphs[[#This Row],[u2(RNα)]] + F.βα^2*Table_Gross_αβ_Graphs[[#This Row],[u2(RNβ)]]) / (V*F.V*AC.α*F.Res), "None") -> 0.01184969525 | K13: =IFERROR(SQRT(F.αα^2*Table_Gross_αβ_Graphs[[#This Row],[u2(RNβ)]] + F.αβ^2*Table_Gross_αβ_Graphs[[#This Row],[u2(RNα)]]) / (V*F.V* AC.β*F.Res), "None") -> 0.002595818302 | L13: ='Gross αβ'!φMRα -> 0.15 | M13: ='Gross αβ'!φMRβ -> 0.1 | N13: 0.002255633731 | O13: 0.0004075965804
G14: 5000 | H14: =R.Sα/Table_Gross_αβ_Graphs[[#This Row],[tS]] + R.Bα/t.B -> 0.0011634 | I14: =R.Sβ/Table_Gross_αβ_Graphs[[#This Row],[tS]] + R.Bβ/t.B -> 0.0168288 | J14: =IFERROR(SQRT(F.ββ^2*Table_Gross_αβ_Graphs[[#This Row],[u2(RNα)]] + F.βα^2*Table_Gross_αβ_Graphs[[#This Row],[u2(RNβ)]]) / (V*F.V*AC.α*F.Res), "None") -> 0.007695377904 | K14: =IFERROR(SQRT(F.αα^2*Table_Gross_αβ_Graphs[[#This Row],[u2(RNβ)]] + F.αβ^2*Table_Gross_αβ_Graphs[[#This Row],[u2(RNα)]]) / (V*F.V* AC.β*F.Res), "None") -> 0.001671822373 | L14: ='Gross αβ'!φMRα -> 0.15 | M14: ='Gross αβ'!φMRβ -> 0.1 | N14: 0.002255633731 | O14: 0.0004075965804
G15: 10000 | H15: =R.Sα/Table_Gross_αβ_Graphs[[#This Row],[tS]] + R.Bα/t.B -> 0.0006317 | I15: =R.Sβ/Table_Gross_αβ_Graphs[[#This Row],[tS]] + R.Bβ/t.B -> 0.0089144 | J15: =IFERROR(SQRT(F.ββ^2*Table_Gross_αβ_Graphs[[#This Row],[u2(RNα)]] + F.βα^2*Table_Gross_αβ_Graphs[[#This Row],[u2(RNβ)]]) / (V*F.V*AC.α*F.Res), "None") -> 0.005670393488 | K15: =IFERROR(SQRT(F.αα^2*Table_Gross_αβ_Graphs[[#This Row],[u2(RNβ)]] + F.αβ^2*Table_Gross_αβ_Graphs[[#This Row],[u2(RNα)]]) / (V*F.V* AC.β*F.Res), "None") -> 0.001216783674 | L15: ='Gross αβ'!φMRα -> 0.15 | M15: ='Gross αβ'!φMRβ -> 0.1 | N15: 0.002255633731 | O15: 0.0004075965804
B53: The curves asymptotically approach the minimum values as the sample count time increases.

Sheet Gamma
B1: Gamma-Ray Spectrometry
B4: Result unit = | C4: pCi/g | D4: by | E4: =VLOOKUP(Unit_Result, ConcUnit_Table[],4,FALSE) -> Mass | G4: Sample count time, tS = | H4: 34.22454693 | I4: min
B5: Analytical action level, AAL = | C5: 0.5
B6: Required relative method uncertainty, ϕMR = | C6: 0.05 | G6: ϕM = | H6: =IFERROR(SQRT( (R.N+(1+F)*R.B) / (t.S * R.N^2) + urel_V^2 + urel_ε^2 + urel_I^2 + urel_DF^2), "") -> 0.05 | I6: =IF(RAND()>0,"","") -> 
B7: Required detection limit, MDCR = | C7: 0.1 | G7: MDC = | H7: =IFERROR(getGSmdc(t.S, R.B, (1 + n.P/n.BL) / t.S, (F.Res * ε * (V * F.V) * I * DF)), "") -> 0.0334512648 | I7: =Unit_Result -> pCi/g
B8: Sample aliquot, V = | C8: 400 | D8: g | E8: =IF( IF(Unit_V="", Type1, VLOOKUP(Unit_V, Aliquot_Unit_Table[], 2, FALSE)) = Type_Res, Type_Res, "Mismatch") -> Mass
B9: urel(V) = | C9: 0.001 | G9: Half-life, T1/2 = | H9: =VLOOKUP(Analyte, Nuclide_Table[], 2, FALSE) -> 8.0233 | I9: =VLOOKUP(Analyte,Nuclide_Table[],4,FALSE) -> d
B10: Gamma intensity, Iγ = | C10: 0.6 | D10: ⓘ | G10: urel(T1/2) = | H10: =VLOOKUP(Analyte, Nuclide_Table[], 3, FALSE) / T.12 -> 0.00023681029
B11: urel(Iγ) = | C11: 0.007 | G11: Decay constant, λ = | H11: =IFERROR(VLOOKUP(Analyte, Nuclide_Table[], 5, FALSE), "") -> 5.999429271e-05 | I11: min−1
B12: Efficiency, ε = | C12: 0.1 | G12: Decay before counting, DBC = | H12: =EXP(-λ * t.D * F.t.D) -> 0.6492360548
B13: urel(ε) = | C13: 0.02 | G13: Decay during counting, DDC = | H13: =IFERROR(DDCf(λ * t.S), "") -> 0.9989740636
B14: Baseline, RB = | C14: 1 | D14: cpm ⓘ | G14: Decay factor, DF = | H14: =IFERROR(DBC * DDC, "") -> 0.6485699799
B15: Peak width, nP = | C15: 16 | D15: channels ⓘ | G15: urel(DF) = | H15: =IFERROR(urelDF(λ, urel_T.12, t.D * F.t.D, t.S), "") -> 0.0001025353496
B16: Baseline, nBL = | C16: 6 | D16: channels ⓘ
B17: Decay time, tD = | C17: 5 | D17: d | G17: Net count rate, RN = | H17: =IFERROR( (AAL*F.Res) * (V*F.V) * ε * I * DF, "") -> 17.27790427 | I17: cpm
B18: Analyte = | C18: I-131 | G18: Peak count rate, RP = | H18: =IFERROR(R.N + n.P*R.B, "") -> 33.27790427 | I18: cpm
B21: Based on a single photopeak with no background peak.
H23: 7 | I23: iterations
G24: Result unit factor, FRes = | H24: =VLOOKUP(Unit_Result, ConcUnit_Table[], 5, FALSE) * 60 -> 2220 | I24: =IF(F.Res=1,"","(dpm/"&VLOOKUP(Unit_Result,ConcUnit_Table[],6,FALSE)&") / ("&Unit_Result&")") -> (dpm/kg) / (pCi/g)
G25: Aliquot size factor, FV = | H25: =IF(Type_Res<>Type_V, "", IF(Unit_V="",1,VLOOKUP(Unit_V, Aliquot_Unit_Table[], 3, FALSE))) -> 0.001 | I25: =IFERROR(IF(F.V=1,"",VLOOKUP(Type_V,SI_Unit_Table[],2,FALSE) &"/"& Unit_V), "Error") -> kg/g
G26: Decay time factor, Ft.D = | H26: =VLOOKUP(Unit_t.D, Time_Unit_Table[], 2, FALSE) / 60 -> 1440 | I26: =IF(Unit_t.D="min","","min/"&Unit_t.D) -> min/d

Sheet Gamma Graphs
A2: Analyte = | B2: =Gamma!Analyte -> I-131
A3: AAL = | B3: =Gamma!AAL -> 0.5 | C3: =Gamma!Unit_Result -> pCi/g
A4: ε = | B4: =Gamma!ε -> 0.1
A5: V = | B5: =Gamma!V -> 400 | C5: =Gamma!Unit_V -> g
A6: I = | B6: =Gamma!I -> 0.6
A7: DBC = | B7: =Gamma!DBC -> 0.6492360548
A8: FRes = | B8: =Gamma!F.Res -> 2220
A9: FV = | B9: =Gamma!F.V -> 0.001
A10: nP = | B10: =Gamma!n.P -> 16
A11: nBL = | B11: =Gamma!n.BL -> 6
A12: RB = | B12: =Gamma!R.B -> 1
A13: λ = | B13: =Gamma!λ -> 5.999429271e-05 | C13: min−1
A14: urel(ε × V × I) = | B14: =SQRT(Gamma!urel_ε^2 + Gamma!urel_V^2 + Gamma!urel_I^2) -> 0.02121320344
B16: tS | C16: DDC | D16: DF | E16: RN | F16: ϕM | G16: ϕMR | H16: MDC | I16: MDCR
B17: 1 | C17: =DDCf(λ * Table11[[#This Row],[tS]]) -> 0.9999700035 | D17: =DBC * Table11[[#This Row],[DDC]] -> 0.64921658 | E17: =(AAL * F.Res) * ε * (V * F.V) * I * Table11[[#This Row],[DF]] -> 17.29512969 | F17: =SQRT((Table11[[#This Row],[RN]] + (1+(n.P/n.BL))*R.B) / (Table11[[#This Row],[tS]] * Table11[[#This Row],[RN]]^2) + urel_D^2 + urelDF(λ, Gamma!urel_T.12, (Gamma!t.D*Gamma!F.t.D), Table11[[#This Row],[tS]])^2) -> 0.2655708451 | G17: =Gamma!φ.MR -> 0.05 | H17: =getGSmdc(Table11[[#This Row],[tS]], R.B, (1+n.P/n.BL)/Table11[[#This Row],[tS]], F.Res * ε * (V * F.V) * I * Table11[[#This Row],[DF]]) -> 0.2603592899 | I17: =Gamma!MDC.R -> 0.1
B18: 1.5 | C18: =DDCf(λ * Table11[[#This Row],[tS]]) -> 0.9999550056 | D18: =DBC * Table11[[#This Row],[DDC]] -> 0.6492068429 | E18: =(AAL * F.Res) * ε * (V * F.V) * I * Table11[[#This Row],[DF]] -> 17.29487029 | F18: =SQRT((Table11[[#This Row],[RN]] + (1+(n.P/n.BL))*R.B) / (Table11[[#This Row],[tS]] * Table11[[#This Row],[RN]]^2) + urel_D^2 + urelDF(λ, Gamma!urel_T.12, (Gamma!t.D*Gamma!F.t.D), Table11[[#This Row],[tS]])^2) -> 0.2171851958 | G18: =Gamma!φ.MR -> 0.05 | H18: =getGSmdc(Table11[[#This Row],[tS]], R.B, (1+n.P/n.BL)/Table11[[#This Row],[tS]], F.Res * ε * (V * F.V) * I * Table11[[#This Row],[DF]]) -> 0.2008641628 | I18: =Gamma!MDC.R -> 0.1
B19: 2 | C19: =DDCf(λ * Table11[[#This Row],[tS]]) -> 0.9999400081 | D19: =DBC * Table11[[#This Row],[DDC]] -> 0.6491971059 | E19: =(AAL * F.Res) * ε * (V * F.V) * I * Table11[[#This Row],[DF]] -> 17.2946109 | F19: =SQRT((Table11[[#This Row],[RN]] + (1+(n.P/n.BL))*R.B) / (Table11[[#This Row],[tS]] * Table11[[#This Row],[RN]]^2) + urel_D^2 + urelDF(λ, Gamma!urel_T.12, (Gamma!t.D*Gamma!F.t.D), Table11[[#This Row],[tS]])^2) -> 0.1883883676 | G19: =Gamma!φ.MR -> 0.05 | H19: =getGSmdc(Table11[[#This Row],[tS]], R.B, (1+n.P/n.BL)/Table11[[#This Row],[tS]], F.Res * ε * (V * F.V) * I * Table11[[#This Row],[DF]]) -> 0.1679047187 | I19: =Gamma!MDC.R -> 0.1
B20: 3 | C20: =DDCf(λ * Table11[[#This Row],[tS]]) -> 0.999910014 | D20: =DBC * Table11[[#This Row],[DDC]] -> 0.6491776327 | E20: =(AAL * F.Res) * ε * (V * F.V) * I * Table11[[#This Row],[DF]] -> 17.29409213 | F20: =SQRT((Table11[[#This Row],[RN]] + (1+(n.P/n.BL))*R.B) / (Table11[[#This Row],[tS]] * Table11[[#This Row],[RN]]^2) + urel_D^2 + urelDF(λ, Gamma!urel_T.12, (Gamma!t.D*Gamma!F.t.D), Table11[[#This Row],[tS]])^2) -> 0.1543079545 | G20: =Gamma!φ.MR -> 0.05 | H20: =getGSmdc(Table11[[#This Row],[tS]], R.B, (1+n.P/n.BL)/Table11[[#This Row],[tS]], F.Res * ε * (V * F.V) * I * Table11[[#This Row],[DF]]) -> 0.1312367296 | I20: =Gamma!MDC.R -> 0.1
B21: 4 | C21: =DDCf(λ * Table11[[#This Row],[tS]]) -> 0.999880021 | D21: =DBC * Table11[[#This Row],[DDC]] -> 0.6491581602 | E21: =(AAL * F.Res) * ε * (V * F.V) * I * Table11[[#This Row],[DF]] -> 17.29357339 | F21: =SQRT((Table11[[#This Row],[RN]] + (1+(n.P/n.BL))*R.B) / (Table11[[#This Row],[tS]] * Table11[[#This Row],[RN]]^2) + urel_D^2 + urelDF(λ, Gamma!urel_T.12, (Gamma!t.D*Gamma!F.t.D), Table11[[#This Row],[tS]])^2) -> 0.1340571846 | G21: =Gamma!φ.MR -> 0.05 | H21: =getGSmdc(Table11[[#This Row],[tS]], R.B, (1+n.P/n.BL)/Table11[[#This Row],[tS]], F.Res * ε * (V * F.V) * I * Table11[[#This Row],[DF]]) -> 0.1106318905 | I21: =Gamma!MDC.R -> 0.1
B22: 5 | C22: =DDCf(λ * Table11[[#This Row],[tS]]) -> 0.9998500293 | D22: =DBC * Table11[[#This Row],[DDC]] -> 0.6491386884 | E22: =(AAL * F.Res) * ε * (V * F.V) * I * Table11[[#This Row],[DF]] -> 17.29305466 | F22: =SQRT((Table11[[#This Row],[RN]] + (1+(n.P/n.BL))*R.B) / (Table11[[#This Row],[tS]] * Table11[[#This Row],[RN]]^2) + urel_D^2 + urelDF(λ, Gamma!urel_T.12, (Gamma!t.D*Gamma!F.t.D), Table11[[#This Row],[tS]])^2) -> 0.1202811669 | G22: =Gamma!φ.MR -> 0.05 | H22: =getGSmdc(Table11[[#This Row],[tS]], R.B, (1+n.P/n.BL)/Table11[[#This Row],[tS]], F.Res * ε * (V * F.V) * I * Table11[[#This Row],[DF]]) -> 0.09710813806 | I22: =Gamma!MDC.R -> 0.1
B23: 6 | C23: =DDCf(λ * Table11[[#This Row],[tS]]) -> 0.9998200387 | D23: =DBC * Table11[[#This Row],[DDC]] -> 0.6491192175 | E23: =(AAL * F.Res) * ε * (V * F.V) * I * Table11[[#This Row],[DF]] -> 17.29253595 | F23: =SQRT((Table11[[#This Row],[RN]] + (1+(n.P/n.BL))*R.B) / (Table11[[#This Row],[tS]] * Table11[[#This Row],[RN]]^2) + urel_D^2 + urelDF(λ, Gamma!urel_T.12, (Gamma!t.D*Gamma!F.t.D), Table11[[#This Row],[tS]])^2) -> 0.1101440542 | G23: =Gamma!φ.MR -> 0.05 | H23: =getGSmdc(Table11[[#This Row],[tS]], R.B, (1+n.P/n.BL)/Table11[[#This Row],[tS]], F.Res * ε * (V * F.V) * I * Table11[[#This Row],[DF]]) -> 0.08740521006 | I23: =Gamma!MDC.R -> 0.1
B24: 7 | C24: =DDCf(λ * Table11[[#This Row],[tS]]) -> 0.9997900494 | D24: =DBC * Table11[[#This Row],[DDC]] -> 0.6490997473 | E24: =(AAL * F.Res) * ε * (V * F.V) * I * Table11[[#This Row],[DF]] -> 17.29201727 | F24: =SQRT((Table11[[#This Row],[RN]] + (1+(n.P/n.BL))*R.B) / (Table11[[#This Row],[tS]] * Table11[[#This Row],[RN]]^2) + urel_D^2 + urelDF(λ, Gamma!urel_T.12, (Gamma!t.D*Gamma!F.t.D), Table11[[#This Row],[tS]])^2) -> 0.1022900336 | G24: =Gamma!φ.MR -> 0.05 | H24: =getGSmdc(Table11[[#This Row],[tS]], R.B, (1+n.P/n.BL)/Table11[[#This Row],[tS]], F.Res * ε * (V * F.V) * I * Table11[[#This Row],[DF]]) -> 0.08002832003 | I24: =Gamma!MDC.R -> 0.1
B25: 8 | C25: =DDCf(λ * Table11[[#This Row],[tS]]) -> 0.9997600612 | D25: =DBC * Table11[[#This Row],[DDC]] -> 0.6490802779 | E25: =(AAL * F.Res) * ε * (V * F.V) * I * Table11[[#This Row],[DF]] -> 17.2914986 | F25: =SQRT((Table11[[#This Row],[RN]] + (1+(n.P/n.BL))*R.B) / (Table11[[#This Row],[tS]] * Table11[[#This Row],[RN]]^2) + urel_D^2 + urelDF(λ, Gamma!urel_T.12, (Gamma!t.D*Gamma!F.t.D), Table11[[#This Row],[tS]])^2) -> 0.09597866793 | G25: =Gamma!φ.MR -> 0.05 | H25: =getGSmdc(Table11[[#This Row],[tS]], R.B, (1+n.P/n.BL)/Table11[[#This Row],[tS]], F.Res * ε * (V * F.V) * I * Table11[[#This Row],[DF]]) -> 0.07418656164 | I25: =Gamma!MDC.R -> 0.1
B26: 9 | C26: =DDCf(λ * Table11[[#This Row],[tS]]) -> 0.9997300743 | D26: =DBC * Table11[[#This Row],[DDC]] -> 0.6490608093 | E26: =(AAL * F.Res) * ε * (V * F.V) * I * Table11[[#This Row],[DF]] -> 17.29097996 | F26: =SQRT((Table11[[#This Row],[RN]] + (1+(n.P/n.BL))*R.B) / (Table11[[#This Row],[tS]] * Table11[[#This Row],[RN]]^2) + urel_D^2 + urelDF(λ, Gamma!urel_T.12, (Gamma!t.D*Gamma!F.t.D), Table11[[#This Row],[tS]])^2) -> 0.09076692889 | G26: =Gamma!φ.MR -> 0.05 | H26: =getGSmdc(Table11[[#This Row],[tS]], R.B, (1+n.P/n.BL)/Table11[[#This Row],[tS]], F.Res * ε * (V * F.V) * I * Table11[[#This Row],[DF]]) -> 0.06941845516 | I26: =Gamma!MDC.R -> 0.1
B27: 10 | C27: =DDCf(λ * Table11[[#This Row],[tS]]) -> 0.9997000885 | D27: =DBC * Table11[[#This Row],[DDC]] -> 0.6490413415 | E27: =(AAL * F.Res) * ε * (V * F.V) * I * Table11[[#This Row],[DF]] -> 17.29046134 | F27: =SQRT((Table11[[#This Row],[RN]] + (1+(n.P/n.BL))*R.B) / (Table11[[#This Row],[tS]] * Table11[[#This Row],[RN]]^2) + urel_D^2 + urelDF(λ, Gamma!urel_T.12, (Gamma!t.D*Gamma!F.t.D), Table11[[#This Row],[tS]])^2) -> 0.08637140693 | G27: =Gamma!φ.MR -> 0.05 | H27: =getGSmdc(Table11[[#This Row],[tS]], R.B, (1+n.P/n.BL)/Table11[[#This Row],[tS]], F.Res * ε * (V * F.V) * I * Table11[[#This Row],[DF]]) -> 0.06543481949 | I27: =Gamma!MDC.R -> 0.1
B28: 15 | C28: =DDCf(λ * Table11[[#This Row],[tS]]) -> 0.9995501777 | D28: =DBC * Table11[[#This Row],[DDC]] -> 0.648944014 | E28: =(AAL * F.Res) * ε * (V * F.V) * I * Table11[[#This Row],[DF]] -> 17.28786853 | F28: =SQRT((Table11[[#This Row],[RN]] + (1+(n.P/n.BL))*R.B) / (Table11[[#This Row],[tS]] * Table11[[#This Row],[RN]]^2) + urel_D^2 + urelDF(λ, Gamma!urel_T.12, (Gamma!t.D*Gamma!F.t.D), Table11[[#This Row],[tS]])^2) -> 0.07158333375 | G28: =Gamma!φ.MR -> 0.05 | H28: =getGSmdc(Table11[[#This Row],[tS]], R.B, (1+n.P/n.BL)/Table11[[#This Row],[tS]], F.Res * ε * (V * F.V) * I * Table11[[#This Row],[DF]]) -> 0.05226269502 | I28: =Gamma!MDC.R -> 0.1
B29: 20 | C29: =DDCf(λ * Table11[[#This Row],[tS]]) -> 0.999400297 | D29: =DBC * Table11[[#This Row],[DDC]] -> 0.648846706 | E29: =(AAL * F.Res) * ε * (V * F.V) * I * Table11[[#This Row],[DF]] -> 17.28527625 | F29: =SQRT((Table11[[#This Row],[RN]] + (1+(n.P/n.BL))*R.B) / (Table11[[#This Row],[tS]] * Table11[[#This Row],[RN]]^2) + urel_D^2 + urelDF(λ, Gamma!urel_T.12, (Gamma!t.D*Gamma!F.t.D), Table11[[#This Row],[tS]])^2) -> 0.06289873314 | G29: =Gamma!φ.MR -> 0.05 | H29: =getGSmdc(Table11[[#This Row],[tS]], R.B, (1+n.P/n.BL)/Table11[[#This Row],[tS]], F.Res * ε * (V * F.V) * I * Table11[[#This Row],[DF]]) -> 0.04466214677 | I29: =Gamma!MDC.R -> 0.1
B30: 30 | C30: =DDCf(λ * Table11[[#This Row],[tS]]) -> 0.9991006253 | D30: =DBC * Table11[[#This Row],[DDC]] -> 0.6486521483 | E30: =(AAL * F.Res) * ε * (V * F.V) * I * Table11[[#This Row],[DF]] -> 17.28009323 | F30: =SQRT((Table11[[#This Row],[RN]] + (1+(n.P/n.BL))*R.B) / (Table11[[#This Row],[tS]] * Table11[[#This Row],[RN]]^2) + urel_D^2 + urelDF(λ, Gamma!urel_T.12, (Gamma!t.D*Gamma!F.t.D), Table11[[#This Row],[tS]])^2) -> 0.05280461891 | G30: =Gamma!φ.MR -> 0.05 | H30: =getGSmdc(Table11[[#This Row],[tS]], R.B, (1+n.P/n.BL)/Table11[[#This Row],[tS]], F.Res * ε * (V * F.V) * I * Table11[[#This Row],[DF]]) -> 0.03589085198 | I30: =Gamma!MDC.R -> 0.1
B31: 40 | C31: =DDCf(λ * Table11[[#This Row],[tS]]) -> 0.9988010734 | D31: =DBC * Table11[[#This Row],[DDC]] -> 0.6484576685 | E31: =(AAL * F.Res) * ε * (V * F.V) * I * Table11[[#This Row],[DF]] -> 17.27491229 | F31: =SQRT((Table11[[#This Row],[RN]] + (1+(n.P/n.BL))*R.B) / (Table11[[#This Row],[tS]] * Table11[[#This Row],[RN]]^2) + urel_D^2 + urelDF(λ, Gamma!urel_T.12, (Gamma!t.D*Gamma!F.t.D), Table11[[#This Row],[tS]])^2) -> 0.04695068197 | G31: =Gamma!φ.MR -> 0.05 | H31: =getGSmdc(Table11[[#This Row],[tS]], R.B, (1+n.P/n.BL)/Table11[[#This Row],[tS]], F.Res * ε * (V * F.V) * I * Table11[[#This Row],[DF]]) -> 0.03078879863 | I31: =Gamma!MDC.R -> 0.1
B32: 50 | C32: =DDCf(λ * Table11[[#This Row],[tS]]) -> 0.9985016413 | D32: =DBC * Table11[[#This Row],[DDC]] -> 0.6482632663 | E32: =(AAL * F.Res) * ε * (V * F.V) * I * Table11[[#This Row],[DF]] -> 17.26973342 | F32: =SQRT((Table11[[#This Row],[RN]] + (1+(n.P/n.BL))*R.B) / (Table11[[#This Row],[tS]] * Table11[[#This Row],[RN]]^2) + urel_D^2 + urelDF(λ, Gamma!urel_T.12, (Gamma!t.D*Gamma!F.t.D), Table11[[#This Row],[tS]])^2) -> 0.04305798348 | G32: =Gamma!φ.MR -> 0.05 | H32: =getGSmdc(Table11[[#This Row],[tS]], R.B, (1+n.P/n.BL)/Table11[[#This Row],[tS]], F.Res * ε * (V * F.V) * I * Table11[[#This Row],[DF]]) -> 0.02736164737 | I32: =Gamma!MDC.R -> 0.1
B33: 60 | C33: =DDCf(λ * Table11[[#This Row],[tS]]) -> 0.9982023289 | D33: =DBC * Table11[[#This Row],[DDC]] -> 0.6480689419 | E33: =(AAL * F.Res) * ε * (V * F.V) * I * Table11[[#This Row],[DF]] -> 17.26455661 | F33: =SQRT((Table11[[#This Row],[RN]] + (1+(n.P/n.BL))*R.B) / (Table11[[#This Row],[tS]] * Table11[[#This Row],[RN]]^2) + urel_D^2 + urelDF(λ, Gamma!urel_T.12, (Gamma!t.D*Gamma!F.t.D), Table11[[#This Row],[tS]])^2) -> 0.04025426274 | G33: =Gamma!φ.MR -> 0.05 | H33: =getGSmdc(Table11[[#This Row],[tS]], R.B, (1+n.P/n.BL)/Table11[[#This Row],[tS]], F.Res * ε * (V * F.V) * I * Table11[[#This Row],[DF]]) -> 0.02486047581 | I33: =Gamma!MDC.R -> 0.1
B34: 70 | C34: =DDCf(λ * Table11[[#This Row],[tS]]) -> 0.9979031361 | D34: =DBC * Table11[[#This Row],[DDC]] -> 0.6478746952 | E34: =(AAL * F.Res) * ε * (V * F.V) * I * Table11[[#This Row],[DF]] -> 17.25938188 | F34: =SQRT((Table11[[#This Row],[RN]] + (1+(n.P/n.BL))*R.B) / (Table11[[#This Row],[tS]] * Table11[[#This Row],[RN]]^2) + urel_D^2 + urelDF(λ, Gamma!urel_T.12, (Gamma!t.D*Gamma!F.t.D), Table11[[#This Row],[tS]])^2) -> 0.0381255802 | G34: =Gamma!φ.MR -> 0.05 | H34: =getGSmdc(Table11[[#This Row],[tS]], R.B, (1+n.P/n.BL)/Table11[[#This Row],[tS]], F.Res * ε * (V * F.V) * I * Table11[[#This Row],[DF]]) -> 0.02293349888 | I34: =Gamma!MDC.R -> 0.1
B35: 80 | C35: =DDCf(λ * Table11[[#This Row],[tS]]) -> 0.997604063 | D35: =DBC * Table11[[#This Row],[DDC]] -> 0.6476805261 | E35: =(AAL * F.Res) * ε * (V * F.V) * I * Table11[[#This Row],[DF]] -> 17.25420922 | F35: =SQRT((Table11[[#This Row],[RN]] + (1+(n.P/n.BL))*R.B) / (Table11[[#This Row],[tS]] * Table11[[#This Row],[RN]]^2) + urel_D^2 + urelDF(λ, Gamma!urel_T.12, (Gamma!t.D*Gamma!F.t.D), Table11[[#This Row],[tS]])^2) -> 0.0364475734 | G35: =Gamma!φ.MR -> 0.05 | H35: =getGSmdc(Table11[[#This Row],[tS]], R.B, (1+n.P/n.BL)/Table11[[#This Row],[tS]], F.Res * ε * (V * F.V) * I * Table11[[#This Row],[DF]]) -> 0.0213910769 | I35: =Gamma!MDC.R -> 0.1
B36: 90 | C36: =DDCf(λ * Table11[[#This Row],[tS]]) -> 0.9973051094 | D36: =DBC * Table11[[#This Row],[DDC]] -> 0.6474864347 | E36: =(AAL * F.Res) * ε * (V * F.V) * I * Table11[[#This Row],[DF]] -> 17.24903862 | F36: =SQRT((Table11[[#This Row],[RN]] + (1+(n.P/n.BL))*R.B) / (Table11[[#This Row],[tS]] * Table11[[#This Row],[RN]]^2) + urel_D^2 + urelDF(λ, Gamma!urel_T.12, (Gamma!t.D*Gamma!F.t.D), Table11[[#This Row],[tS]])^2) -> 0.03508702101 | G36: =Gamma!φ.MR -> 0.05 | H36: =getGSmdc(Table11[[#This Row],[tS]], R.B, (1+n.P/n.BL)/Table11[[#This Row],[tS]], F.Res * ε * (V * F.V) * I * Table11[[#This Row],[DF]]) -> 0.02012087758 | I36: =Gamma!MDC.R -> 0.1
B37: 100 | C37: =DDCf(λ * Table11[[#This Row],[tS]]) -> 0.9970062752 | D37: =DBC * Table11[[#This Row],[DDC]] -> 0.6472924208 | E37: =(AAL * F.Res) * ε * (V * F.V) * I * Table11[[#This Row],[DF]] -> 17.24387009 | F37: =SQRT((Table11[[#This Row],[RN]] + (1+(n.P/n.BL))*R.B) / (Table11[[#This Row],[tS]] * Table11[[#This Row],[RN]]^2) + urel_D^2 + urelDF(λ, Gamma!urel_T.12, (Gamma!t.D*Gamma!F.t.D), Table11[[#This Row],[tS]])^2) -> 0.03395935611 | G37: =Gamma!φ.MR -> 0.05 | H37: =getGSmdc(Table11[[#This Row],[tS]], R.B, (1+n.P/n.BL)/Table11[[#This Row],[tS]], F.Res * ε * (V * F.V) * I * Table11[[#This Row],[DF]]) -> 0.01905161902 | I37: =Gamma!MDC.R -> 0.1
B38: 150 | C38: =DDCf(λ * Table11[[#This Row],[tS]]) -> 0.9955138952 | D38: =DBC * Table11[[#This Row],[DDC]] -> 0.6463235138 | E38: =(AAL * F.Res) * ε * (V * F.V) * I * Table11[[#This Row],[DF]] -> 17.21805841 | F38: =SQRT((Table11[[#This Row],[RN]] + (1+(n.P/n.BL))*R.B) / (Table11[[#This Row],[tS]] * Table11[[#This Row],[RN]]^2) + urel_D^2 + urelDF(λ, Gamma!urel_T.12, (Gamma!t.D*Gamma!F.t.D), Table11[[#This Row],[tS]])^2) -> 0.03032581548 | G38: =Gamma!φ.MR -> 0.05 | H38: =getGSmdc(Table11[[#This Row],[tS]], R.B, (1+n.P/n.BL)/Table11[[#This Row],[tS]], F.Res * ε * (V * F.V) * I * Table11[[#This Row],[DF]]) -> 0.01546116338 | I38: =Gamma!MDC.R -> 0.1
B39: 200 | C39: =DDCf(λ * Table11[[#This Row],[tS]]) -> 0.9940244944 | D39: =DBC * Table11[[#This Row],[DDC]] -> 0.6453565411 | E39: =(AAL * F.Res) * ε * (V * F.V) * I * Table11[[#This Row],[DF]] -> 17.19229826 | F39: =SQRT((Table11[[#This Row],[RN]] + (1+(n.P/n.BL))*R.B) / (Table11[[#This Row],[tS]] * Table11[[#This Row],[RN]]^2) + urel_D^2 + urelDF(λ, Gamma!urel_T.12, (Gamma!t.D*Gamma!F.t.D), Table11[[#This Row],[tS]])^2) -> 0.0283348659 | G39: =Gamma!φ.MR -> 0.05 | H39: =getGSmdc(Table11[[#This Row],[tS]], R.B, (1+n.P/n.BL)/Table11[[#This Row],[tS]], F.Res * ε * (V * F.V) * I * Table11[[#This Row],[DF]]) -> 0.01334894916 | I39: =Gamma!MDC.R -> 0.1
B40: 300 | C40: =DDCf(λ * Table11[[#This Row],[tS]]) -> 0.9910546038 | D40: =DBC * Table11[[#This Row],[DDC]] -> 0.6434283811 | E40: =(AAL * F.Res) * ε * (V * F.V) * I * Table11[[#This Row],[DF]] -> 17.14093207 | F40: =SQRT((Table11[[#This Row],[RN]] + (1+(n.P/n.BL))*R.B) / (Table11[[#This Row],[tS]] * Table11[[#This Row],[RN]]^2) + urel_D^2 + urelDF(λ, Gamma!urel_T.12, (Gamma!t.D*Gamma!F.t.D), Table11[[#This Row],[tS]])^2) -> 0.02619305315 | G40: =Gamma!φ.MR -> 0.05 | H40: =getGSmdc(Table11[[#This Row],[tS]], R.B, (1+n.P/n.BL)/Table11[[#This Row],[tS]], F.Res * ε * (V * F.V) * I * Table11[[#This Row],[DF]]) -> 0.01087289965 | I40: =Gamma!MDC.R -> 0.1
B41: 400 | C41: =DDCf(λ * Table11[[#This Row],[tS]]) -> 0.9880965501 | D41: =DBC * Table11[[#This Row],[DDC]] -> 0.641507906 | E41: =(AAL * F.Res) * ε * (V * F.V) * I * Table11[[#This Row],[DF]] -> 17.08977062 | F41: =SQRT((Table11[[#This Row],[RN]] + (1+(n.P/n.BL))*R.B) / (Table11[[#This Row],[tS]] * Table11[[#This Row],[RN]]^2) + urel_D^2 + urelDF(λ, Gamma!urel_T.12, (Gamma!t.D*Gamma!F.t.D), Table11[[#This Row],[tS]])^2) -> 0.02505361467 | G41: =Gamma!φ.MR -> 0.05 | H41: =getGSmdc(Table11[[#This Row],[tS]], R.B, (1+n.P/n.BL)/Table11[[#This Row],[tS]], F.Res * ε * (V * F.V) * I * Table11[[#This Row],[DF]]) -> 0.009413777054 | I41: =Gamma!MDC.R -> 0.1
B42: 500 | C42: =DDCf(λ * Table11[[#This Row],[tS]]) -> 0.9851502803 | D42: =DBC * Table11[[#This Row],[DDC]] -> 0.6395950814 | E42: =(AAL * F.Res) * ε * (V * F.V) * I * Table11[[#This Row],[DF]] -> 17.03881297 | F42: =SQRT((Table11[[#This Row],[RN]] + (1+(n.P/n.BL))*R.B) / (Table11[[#This Row],[tS]] * Table11[[#This Row],[RN]]^2) + urel_D^2 + urelDF(λ, Gamma!urel_T.12, (Gamma!t.D*Gamma!F.t.D), Table11[[#This Row],[tS]])^2) -> 0.02434439673 | G42: =Gamma!φ.MR -> 0.05 | H42: =getGSmdc(Table11[[#This Row],[tS]], R.B, (1+n.P/n.BL)/Table11[[#This Row],[tS]], F.Res * ε * (V * F.V) * I * Table11[[#This Row],[DF]]) -> 0.008426373903 | I42: =Gamma!MDC.R -> 0.1
B43: 600 | C43: =DDCf(λ * Table11[[#This Row],[tS]]) -> 0.9822157416 | D43: =DBC * Table11[[#This Row],[DDC]] -> 0.6376898731 | E43: =(AAL * F.Res) * ε * (V * F.V) * I * Table11[[#This Row],[DF]] -> 16.98805822 | F43: =SQRT((Table11[[#This Row],[RN]] + (1+(n.P/n.BL))*R.B) / (Table11[[#This Row],[tS]] * Table11[[#This Row],[RN]]^2) + urel_D^2 + urelDF(λ, Gamma!urel_T.12, (Gamma!t.D*Gamma!F.t.D), Table11[[#This Row],[tS]])^2) -> 0.02385990221 | G43: =Gamma!φ.MR -> 0.05 | H43: =getGSmdc(Table11[[#This Row],[tS]], R.B, (1+n.P/n.BL)/Table11[[#This Row],[tS]], F.Res * ε * (V * F.V) * I * Table11[[#This Row],[DF]]) -> 0.007702503992 | I43: =Gamma!MDC.R -> 0.1
B44: 700 | C44: =DDCf(λ * Table11[[#This Row],[tS]]) -> 0.9792928812 | D44: =DBC * Table11[[#This Row],[DDC]] -> 0.6357922468 | E44: =(AAL * F.Res) * ε * (V * F.V) * I * Table11[[#This Row],[DF]] -> 16.93750545 | F44: =SQRT((Table11[[#This Row],[RN]] + (1+(n.P/n.BL))*R.B) / (Table11[[#This Row],[tS]] * Table11[[#This Row],[RN]]^2) + urel_D^2 + urelDF(λ, Gamma!urel_T.12, (Gamma!t.D*Gamma!F.t.D), Table11[[#This Row],[tS]])^2) -> 0.02350774483 | G44: =Gamma!φ.MR -> 0.05 | H44: =getGSmdc(Table11[[#This Row],[tS]], R.B, (1+n.P/n.BL)/Table11[[#This Row],[tS]], F.Res * ε * (V * F.V) * I * Table11[[#This Row],[DF]]) -> 0.00714327352 | I44: =Gamma!MDC.R -> 0.1
B45: 800 | C45: =DDCf(λ * Table11[[#This Row],[tS]]) -> 0.976381647 | D45: =DBC * Table11[[#This Row],[DDC]] -> 0.6339021686 | E45: =(AAL * F.Res) * ε * (V * F.V) * I * Table11[[#This Row],[DF]] -> 16.88715377 | F45: =SQRT((Table11[[#This Row],[RN]] + (1+(n.P/n.BL))*R.B) / (Table11[[#This Row],[tS]] * Table11[[#This Row],[RN]]^2) + urel_D^2 + urelDF(λ, Gamma!urel_T.12, (Gamma!t.D*Gamma!F.t.D), Table11[[#This Row],[tS]])^2) -> 0.02324014543 | G45: =Gamma!φ.MR -> 0.05 | H45: =getGSmdc(Table11[[#This Row],[tS]], R.B, (1+n.P/n.BL)/Table11[[#This Row],[tS]], F.Res * ε * (V * F.V) * I * Table11[[#This Row],[DF]]) -> 0.006694928798 | I45: =Gamma!MDC.R -> 0.1
B46: 900 | C46: =DDCf(λ * Table11[[#This Row],[tS]]) -> 0.9734819869 | D46: =DBC * Table11[[#This Row],[DDC]] -> 0.6320196046 | E46: =(AAL * F.Res) * ε * (V * F.V) * I * Table11[[#This Row],[DF]] -> 16.83700227 | F46: =SQRT((Table11[[#This Row],[RN]] + (1+(n.P/n.BL))*R.B) / (Table11[[#This Row],[tS]] * Table11[[#This Row],[RN]]^2) + urel_D^2 + urelDF(λ, Gamma!urel_T.12, (Gamma!t.D*Gamma!F.t.D), Table11[[#This Row],[tS]])^2) -> 0.02302988118 | G46: =Gamma!φ.MR -> 0.05 | H46: =getGSmdc(Table11[[#This Row],[tS]], R.B, (1+n.P/n.BL)/Table11[[#This Row],[tS]], F.Res * ε * (V * F.V) * I * Table11[[#This Row],[DF]]) -> 0.006325424503 | I46: =Gamma!MDC.R -> 0.1
B47: 1000 | C47: =DDCf(λ * Table11[[#This Row],[tS]]) -> 0.970593849 | D47: =DBC * Table11[[#This Row],[DDC]] -> 0.6301445214 | E47: =(AAL * F.Res) * ε * (V * F.V) * I * Table11[[#This Row],[DF]] -> 16.78705005 | F47: =SQRT((Table11[[#This Row],[RN]] + (1+(n.P/n.BL))*R.B) / (Table11[[#This Row],[tS]] * Table11[[#This Row],[RN]]^2) + urel_D^2 + urelDF(λ, Gamma!urel_T.12, (Gamma!t.D*Gamma!F.t.D), Table11[[#This Row],[tS]])^2) -> 0.02286029393 | G47: =Gamma!φ.MR -> 0.05 | H47: =getGSmdc(Table11[[#This Row],[tS]], R.B, (1+n.P/n.BL)/Table11[[#This Row],[tS]], F.Res * ε * (V * F.V) * I * Table11[[#This Row],[DF]]) -> 0.00601432109 | I47: =Gamma!MDC.R -> 0.1

Sheet Lookup Tables
B1: Activity Units | E1: Time Units | H1: SI Units
B2: Unit | C2: SI Factor | E2: Unit | F2: SI Factor | H2: Type | I2: SI Unit
B3: Bq | C3: 1 | E3: a | F3: 31556926 | H3: Activity | I3: Bq
B4: dpm | C4: =1/60 -> 0.01666666667 | E4: d | F4: 86400 | H4: Mass | I4: kg
B5: kBq | C5: 1000 | E5: h | F5: 3600 | H5: =Type1 -> Total | I5: 1
B6: mBq | C6: 0.001 | E6: min | F6: 60 | H6: Volume | I6: m3
B7: mCi | C7: 37000000 | E7: s | F7: 1
B8: nCi | C8: 37
B9: pCi | C9: 0.037 | E9: All unit conversion factors are based on SI units, although count times are more conveniently expressed in minutes, not seconds.
B10: μBq | C10: 1e-06
B11: μCi | C11: 37000
B14: Radionuclides and Half-lives | H14: Activity Concentration Units
B15: Nuclide | C15: Half-life | D15: u | E15: Unit | F15: λ / min−1 | H15: Unit | I15: Over | J15: Under | K15: Type | L15: SI Factor | M15: SI Unit (Under)
B16: Ac-228 | C16: 6.15 | D16: 0.03 | E16: h | F16: =LN(2) / (Nuclide_Table[[#This Row],[Half-life]] * VLOOKUP(Nuclide_Table[[#This Row],[Unit]],Time_Unit_Table[],2,FALSE) / 60) -> 0.001878447644 | H16: Bq | I16: =UnitOver(ConcUnit_Table[[#This Row],[Unit]]) -> Bq | J16: =UnitUnder(ConcUnit_Table[[#This Row],[Unit]]) ->  | K16: =IF(ConcUnit_Table[[#This Row],[Under]]="", Type1, VLOOKUP(ConcUnit_Table[[#This Row],[Under]],Aliquot_Unit_Table[],2,FALSE)) -> Total | L16: =GetFactor(ConcUnit_Table[[#This Row],[Unit]]) -> 1 | M16: =IF(ConcUnit_Table[[#This Row],[Under]]="","1",VLOOKUP(ConcUnit_Table[[#This Row],[Type]],SI_Unit_Table[],2,FALSE)) -> 1
B17: Am-241 | C17: 432.6 | D17: 0.6 | E17: a | F17: =LN(2) / (Nuclide_Table[[#This Row],[Half-life]] * VLOOKUP(Nuclide_Table[[#This Row],[Unit]],Time_Unit_Table[],2,FALSE) / 60) -> 3.046460173e-09 | H17: Bq/g | I17: =UnitOver(ConcUnit_Table[[#This Row],[Unit]]) -> Bq | J17: =UnitUnder(ConcUnit_Table[[#This Row],[Unit]]) -> g | K17: =IF(ConcUnit_Table[[#This Row],[Under]]="", Type1, VLOOKUP(ConcUnit_Table[[#This Row],[Under]],Aliquot_Unit_Table[],2,FALSE)) -> Mass | L17: =GetFactor(ConcUnit_Table[[#This Row],[Unit]]) -> 1000 | M17: =IF(ConcUnit_Table[[#This Row],[Under]]="","1",VLOOKUP(ConcUnit_Table[[#This Row],[Type]],SI_Unit_Table[],2,FALSE)) -> kg
B18: Am-243 | C18: 7367 | D18: 23 | E18: a | F18: =LN(2) / (Nuclide_Table[[#This Row],[Half-life]] * VLOOKUP(Nuclide_Table[[#This Row],[Unit]],Time_Unit_Table[],2,FALSE) / 60) -> 1.788921774e-10 | H18: Bq/kg | I18: =UnitOver(ConcUnit_Table[[#This Row],[Unit]]) -> Bq | J18: =UnitUnder(ConcUnit_Table[[#This Row],[Unit]]) -> kg | K18: =IF(ConcUnit_Table[[#This Row],[Under]]="", Type1, VLOOKUP(ConcUnit_Table[[#This Row],[Under]],Aliquot_Unit_Table[],2,FALSE)) -> Mass | L18: =GetFactor(ConcUnit_Table[[#This Row],[Unit]]) -> 1 | M18: =IF(ConcUnit_Table[[#This Row],[Under]]="","1",VLOOKUP(ConcUnit_Table[[#This Row],[Type]],SI_Unit_Table[],2,FALSE)) -> kg
B19: Ba-133 | C19: 3848.9 | D19: 0.7 | E19: d | F19: =LN(2) / (Nuclide_Table[[#This Row],[Half-life]] * VLOOKUP(Nuclide_Table[[#This Row],[Unit]],Time_Unit_Table[],2,FALSE) / 60) -> 1.250622798e-07 | H19: Bq/L | I19: =UnitOver(ConcUnit_Table[[#This Row],[Unit]]) -> Bq | J19: =UnitUnder(ConcUnit_Table[[#This Row],[Unit]]) -> L | K19: =IF(ConcUnit_Table[[#This Row],[Under]]="", Type1, VLOOKUP(ConcUnit_Table[[#This Row],[Under]],Aliquot_Unit_Table[],2,FALSE)) -> Volume | L19: =GetFactor(ConcUnit_Table[[#This Row],[Unit]]) -> 1000 | M19: =IF(ConcUnit_Table[[#This Row],[Under]]="","1",VLOOKUP(ConcUnit_Table[[#This Row],[Type]],SI_Unit_Table[],2,FALSE)) -> m3
B20: Cm-244 | C20: 18.11 | D20: 0.03 | E20: a | F20: =LN(2) / (Nuclide_Table[[#This Row],[Half-life]] * VLOOKUP(Nuclide_Table[[#This Row],[Unit]],Time_Unit_Table[],2,FALSE) / 60) -> 7.277187581e-08 | H20: Bq/m3 | I20: =UnitOver(ConcUnit_Table[[#This Row],[Unit]]) -> Bq | J20: =UnitUnder(ConcUnit_Table[[#This Row],[Unit]]) -> m3 | K20: =IF(ConcUnit_Table[[#This Row],[Under]]="", Type1, VLOOKUP(ConcUnit_Table[[#This Row],[Under]],Aliquot_Unit_Table[],2,FALSE)) -> Volume | L20: =GetFactor(ConcUnit_Table[[#This Row],[Unit]]) -> 1 | M20: =IF(ConcUnit_Table[[#This Row],[Under]]="","1",VLOOKUP(ConcUnit_Table[[#This Row],[Type]],SI_Unit_Table[],2,FALSE)) -> m3
B21: Co-60 | C21: 5.2711 | D21: 0.0008 | E21: a | F21: =LN(2) / (Nuclide_Table[[#This Row],[Half-life]] * VLOOKUP(Nuclide_Table[[#This Row],[Unit]],Time_Unit_Table[],2,FALSE) / 60) -> 2.500234621e-07 | H21: Bq/mg | I21: =UnitOver(ConcUnit_Table[[#This Row],[Unit]]) -> Bq | J21: =UnitUnder(ConcUnit_Table[[#This Row],[Unit]]) -> mg | K21: =IF(ConcUnit_Table[[#This Row],[Under]]="", Type1, VLOOKUP(ConcUnit_Table[[#This Row],[Under]],Aliquot_Unit_Table[],2,FALSE)) -> Mass | L21: =GetFactor(ConcUnit_Table[[#This Row],[Unit]]) -> 1000000 | M21: =IF(ConcUnit_Table[[#This Row],[Under]]="","1",VLOOKUP(ConcUnit_Table[[#This Row],[Type]],SI_Unit_Table[],2,FALSE)) -> kg
B22: Cs-134 | C22: 2.0644 | D22: 0.0014 | E22: a | F22: =LN(2) / (Nuclide_Table[[#This Row],[Half-life]] * VLOOKUP(Nuclide_Table[[#This Row],[Unit]],Time_Unit_Table[],2,FALSE) / 60) -> 6.383930783e-07 | H22: Bq/mL | I22: =UnitOver(ConcUnit_Table[[#This Row],[Unit]]) -> Bq | J22: =UnitUnder(ConcUnit_Table[[#This Row],[Unit]]) -> mL | K22: =IF(ConcUnit_Table[[#This Row],[Under]]="", Type1, VLOOKUP(ConcUnit_Table[[#This Row],[Under]],Aliquot_Unit_Table[],2,FALSE)) -> Volume | L22: =GetFactor(ConcUnit_Table[[#This Row],[Unit]]) -> 1000000 | M22: =IF(ConcUnit_Table[[#This Row],[Under]]="","1",VLOOKUP(ConcUnit_Table[[#This Row],[Type]],SI_Unit_Table[],2,FALSE)) -> m3
B23: Cs-137 | C23: 30.05 | D23: 0.08 | E23: a | F23: =LN(2) / (Nuclide_Table[[#This Row],[Half-life]] * VLOOKUP(Nuclide_Table[[#This Row],[Unit]],Time_Unit_Table[],2,FALSE) / 60) -> 4.385686093e-08 | H23: dpm | I23: =UnitOver(ConcUnit_Table[[#This Row],[Unit]]) -> dpm | J23: =UnitUnder(ConcUnit_Table[[#This Row],[Unit]]) ->  | K23: =IF(ConcUnit_Table[[#This Row],[Under]]="", Type1, VLOOKUP(ConcUnit_Table[[#This Row],[Under]],Aliquot_Unit_Table[],2,FALSE)) -> Total | L23: =GetFactor(ConcUnit_Table[[#This Row],[Unit]]) -> 0.01666666667 | M23: =IF(ConcUnit_Table[[#This Row],[Under]]="","1",VLOOKUP(ConcUnit_Table[[#This Row],[Type]],SI_Unit_Table[],2,FALSE)) -> 1
B24: H-3 | C24: 12.312 | D24: 0.025 | E24: a | F24: =LN(2) / (Nuclide_Table[[#This Row],[Half-life]] * VLOOKUP(Nuclide_Table[[#This Row],[Unit]],Time_Unit_Table[],2,FALSE) / 60) -> 1.070418024e-07 | H24: dpm/g | I24: =UnitOver(ConcUnit_Table[[#This Row],[Unit]]) -> dpm | J24: =UnitUnder(ConcUnit_Table[[#This Row],[Unit]]) -> g | K24: =IF(ConcUnit_Table[[#This Row],[Under]]="", Type1, VLOOKUP(ConcUnit_Table[[#This Row],[Under]],Aliquot_Unit_Table[],2,FALSE)) -> Mass | L24: =GetFactor(ConcUnit_Table[[#This Row],[Unit]]) -> 16.66666667 | M24: =IF(ConcUnit_Table[[#This Row],[Under]]="","1",VLOOKUP(ConcUnit_Table[[#This Row],[Type]],SI_Unit_Table[],2,FALSE)) -> kg
B25: Hg-203 | C25: 46.594 | D25: 0.012 | E25: d | F25: =LN(2) / (Nuclide_Table[[#This Row],[Half-life]] * VLOOKUP(Nuclide_Table[[#This Row],[Unit]],Time_Unit_Table[],2,FALSE) / 60) -> 1.033077668e-05 | H25: dpm/kg | I25: =UnitOver(ConcUnit_Table[[#This Row],[Unit]]) -> dpm | J25: =UnitUnder(ConcUnit_Table[[#This Row],[Unit]]) -> kg | K25: =IF(ConcUnit_Table[[#This Row],[Under]]="", Type1, VLOOKUP(ConcUnit_Table[[#This Row],[Under]],Aliquot_Unit_Table[],2,FALSE)) -> Mass | L25: =GetFactor(ConcUnit_Table[[#This Row],[Unit]]) -> 0.01666666667 | M25: =IF(ConcUnit_Table[[#This Row],[Under]]="","1",VLOOKUP(ConcUnit_Table[[#This Row],[Type]],SI_Unit_Table[],2,FALSE)) -> kg
B26: I-131 | C26: 8.0233 | D26: 0.0019 | E26: d | F26: =LN(2) / (Nuclide_Table[[#This Row],[Half-life]] * VLOOKUP(Nuclide_Table[[#This Row],[Unit]],Time_Unit_Table[],2,FALSE) / 60) -> 5.999429271e-05 | H26: dpm/L | I26: =UnitOver(ConcUnit_Table[[#This Row],[Unit]]) -> dpm | J26: =UnitUnder(ConcUnit_Table[[#This Row],[Unit]]) -> L | K26: =IF(ConcUnit_Table[[#This Row],[Under]]="", Type1, VLOOKUP(ConcUnit_Table[[#This Row],[Under]],Aliquot_Unit_Table[],2,FALSE)) -> Volume | L26: =GetFactor(ConcUnit_Table[[#This Row],[Unit]]) -> 16.66666667 | M26: =IF(ConcUnit_Table[[#This Row],[Under]]="","1",VLOOKUP(ConcUnit_Table[[#This Row],[Type]],SI_Unit_Table[],2,FALSE)) -> m3
B27: Mn-54 | C27: 312.13 | D27: 0.03 | E27: d | F27: =LN(2) / (Nuclide_Table[[#This Row],[Half-life]] * VLOOKUP(Nuclide_Table[[#This Row],[Unit]],Time_Unit_Table[],2,FALSE) / 60) -> 1.542152977e-06 | H27: dpm/m3 | I27: =UnitOver(ConcUnit_Table[[#This Row],[Unit]]) -> dpm | J27: =UnitUnder(ConcUnit_Table[[#This Row],[Unit]]) -> m3 | K27: =IF(ConcUnit_Table[[#This Row],[Under]]="", Type1, VLOOKUP(ConcUnit_Table[[#This Row],[Under]],Aliquot_Unit_Table[],2,FALSE)) -> Volume | L27: =GetFactor(ConcUnit_Table[[#This Row],[Unit]]) -> 0.01666666667 | M27: =IF(ConcUnit_Table[[#This Row],[Under]]="","1",VLOOKUP(ConcUnit_Table[[#This Row],[Type]],SI_Unit_Table[],2,FALSE)) -> m3
B28: Po-209 | C28: 102 | D28: 5 | E28: a | F28: =LN(2) / (Nuclide_Table[[#This Row],[Half-life]] * VLOOKUP(Nuclide_Table[[#This Row],[Unit]],Time_Unit_Table[],2,FALSE) / 60) -> 1.292057521e-08 | H28: dpm/mg | I28: =UnitOver(ConcUnit_Table[[#This Row],[Unit]]) -> dpm | J28: =UnitUnder(ConcUnit_Table[[#This Row],[Unit]]) -> mg | K28: =IF(ConcUnit_Table[[#This Row],[Under]]="", Type1, VLOOKUP(ConcUnit_Table[[#This Row],[Under]],Aliquot_Unit_Table[],2,FALSE)) -> Mass | L28: =GetFactor(ConcUnit_Table[[#This Row],[Unit]]) -> 16666.66667 | M28: =IF(ConcUnit_Table[[#This Row],[Under]]="","1",VLOOKUP(ConcUnit_Table[[#This Row],[Type]],SI_Unit_Table[],2,FALSE)) -> kg
B29: Po-210 | C29: 138.3763 | D29: 0.0017 | E29: d | F29: =LN(2) / (Nuclide_Table[[#This Row],[Half-life]] * VLOOKUP(Nuclide_Table[[#This Row],[Unit]],Time_Unit_Table[],2,FALSE) / 60) -> 3.478574067e-06 | H29: dpm/mL | I29: =UnitOver(ConcUnit_Table[[#This Row],[Unit]]) -> dpm | J29: =UnitUnder(ConcUnit_Table[[#This Row],[Unit]]) -> mL | K29: =IF(ConcUnit_Table[[#This Row],[Under]]="", Type1, VLOOKUP(ConcUnit_Table[[#This Row],[Under]],Aliquot_Unit_Table[],2,FALSE)) -> Volume | L29: =GetFactor(ConcUnit_Table[[#This Row],[Unit]]) -> 16666.66667 | M29: =IF(ConcUnit_Table[[#This Row],[Under]]="","1",VLOOKUP(ConcUnit_Table[[#This Row],[Type]],SI_Unit_Table[],2,FALSE)) -> m3
B30: Pu-238 | C30: 87.74 | D30: 0.03 | E30: a | F30: =LN(2) / (Nuclide_Table[[#This Row],[Half-life]] * VLOOKUP(Nuclide_Table[[#This Row],[Unit]],Time_Unit_Table[],2,FALSE) / 60) -> 1.502050001e-08 | H30: kBq | I30: =UnitOver(ConcUnit_Table[[#This Row],[Unit]]) -> kBq | J30: =UnitUnder(ConcUnit_Table[[#This Row],[Unit]]) ->  | K30: =IF(ConcUnit_Table[[#This Row],[Under]]="", Type1, VLOOKUP(ConcUnit_Table[[#This Row],[Under]],Aliquot_Unit_Table[],2,FALSE)) -> Total | L30: =GetFactor(ConcUnit_Table[[#This Row],[Unit]]) -> 1000 | M30: =IF(ConcUnit_Table[[#This Row],[Under]]="","1",VLOOKUP(ConcUnit_Table[[#This Row],[Type]],SI_Unit_Table[],2,FALSE)) -> 1
B31: Pu-239 | C31: 24100 | D31: 11 | E31: a | F31: =LN(2) / (Nuclide_Table[[#This Row],[Half-life]] * VLOOKUP(Nuclide_Table[[#This Row],[Unit]],Time_Unit_Table[],2,FALSE) / 60) -> 5.468459215e-11 | H31: kBq/g | I31: =UnitOver(ConcUnit_Table[[#This Row],[Unit]]) -> kBq | J31: =UnitUnder(ConcUnit_Table[[#This Row],[Unit]]) -> g | K31: =IF(ConcUnit_Table[[#This Row],[Under]]="", Type1, VLOOKUP(ConcUnit_Table[[#This Row],[Under]],Aliquot_Unit_Table[],2,FALSE)) -> Mass | L31: =GetFactor(ConcUnit_Table[[#This Row],[Unit]]) -> 1000000 | M31: =IF(ConcUnit_Table[[#This Row],[Under]]="","1",VLOOKUP(ConcUnit_Table[[#This Row],[Type]],SI_Unit_Table[],2,FALSE)) -> kg
B32: Pu-242 | C32: 373000 | D32: 3000 | E32: a | F32: =LN(2) / (Nuclide_Table[[#This Row],[Half-life]] * VLOOKUP(Nuclide_Table[[#This Row],[Unit]],Time_Unit_Table[],2,FALSE) / 60) -> 3.533240405e-12 | H32: kBq/kg | I32: =UnitOver(ConcUnit_Table[[#This Row],[Unit]]) -> kBq | J32: =UnitUnder(ConcUnit_Table[[#This Row],[Unit]]) -> kg | K32: =IF(ConcUnit_Table[[#This Row],[Under]]="", Type1, VLOOKUP(ConcUnit_Table[[#This Row],[Under]],Aliquot_Unit_Table[],2,FALSE)) -> Mass | L32: =GetFactor(ConcUnit_Table[[#This Row],[Unit]]) -> 1000 | M32: =IF(ConcUnit_Table[[#This Row],[Under]]="","1",VLOOKUP(ConcUnit_Table[[#This Row],[Type]],SI_Unit_Table[],2,FALSE)) -> kg
B33: Ra-226 | C33: 1600 | D33: 7 | E33: a | F33: =LN(2) / (Nuclide_Table[[#This Row],[Half-life]] * VLOOKUP(Nuclide_Table[[#This Row],[Unit]],Time_Unit_Table[],2,FALSE) / 60) -> 8.236866693e-10 | H33: kBq/L | I33: =UnitOver(ConcUnit_Table[[#This Row],[Unit]]) -> kBq | J33: =UnitUnder(ConcUnit_Table[[#This Row],[Unit]]) -> L | K33: =IF(ConcUnit_Table[[#This Row],[Under]]="", Type1, VLOOKUP(ConcUnit_Table[[#This Row],[Under]],Aliquot_Unit_Table[],2,FALSE)) -> Volume | L33: =GetFactor(ConcUnit_Table[[#This Row],[Unit]]) -> 1000000 | M33: =IF(ConcUnit_Table[[#This Row],[Under]]="","1",VLOOKUP(ConcUnit_Table[[#This Row],[Type]],SI_Unit_Table[],2,FALSE)) -> m3
B34: Ra-228 | C34: 5.75 | D34: 0.03 | E34: a | F34: =LN(2) / (Nuclide_Table[[#This Row],[Half-life]] * VLOOKUP(Nuclide_Table[[#This Row],[Unit]],Time_Unit_Table[],2,FALSE) / 60) -> 2.291997689e-07 | H34: kBq/m3 | I34: =UnitOver(ConcUnit_Table[[#This Row],[Unit]]) -> kBq | J34: =UnitUnder(ConcUnit_Table[[#This Row],[Unit]]) -> m3 | K34: =IF(ConcUnit_Table[[#This Row],[Under]]="", Type1, VLOOKUP(ConcUnit_Table[[#This Row],[Under]],Aliquot_Unit_Table[],2,FALSE)) -> Volume | L34: =GetFactor(ConcUnit_Table[[#This Row],[Unit]]) -> 1000 | M34: =IF(ConcUnit_Table[[#This Row],[Under]]="","1",VLOOKUP(ConcUnit_Table[[#This Row],[Type]],SI_Unit_Table[],2,FALSE)) -> m3
B35: Sr-89 | C35: 50.57 | D35: 0.03 | E35: d | F35: =LN(2) / (Nuclide_Table[[#This Row],[Half-life]] * VLOOKUP(Nuclide_Table[[#This Row],[Unit]],Time_Unit_Table[],2,FALSE) / 60) -> 9.518532899e-06 | H35: mBq | I35: =UnitOver(ConcUnit_Table[[#This Row],[Unit]]) -> mBq | J35: =UnitUnder(ConcUnit_Table[[#This Row],[Unit]]) ->  | K35: =IF(ConcUnit_Table[[#This Row],[Under]]="", Type1, VLOOKUP(ConcUnit_Table[[#This Row],[Under]],Aliquot_Unit_Table[],2,FALSE)) -> Total | L35: =GetFactor(ConcUnit_Table[[#This Row],[Unit]]) -> 0.001 | M35: =IF(ConcUnit_Table[[#This Row],[Under]]="","1",VLOOKUP(ConcUnit_Table[[#This Row],[Type]],SI_Unit_Table[],2,FALSE)) -> 1
B36: Sr-90 | C36: 28.8 | D36: 0.07 | E36: a | F36: =LN(2) / (Nuclide_Table[[#This Row],[Half-life]] * VLOOKUP(Nuclide_Table[[#This Row],[Unit]],Time_Unit_Table[],2,FALSE) / 60) -> 4.576037052e-08 | H36: mBq/g | I36: =UnitOver(ConcUnit_Table[[#This Row],[Unit]]) -> mBq | J36: =UnitUnder(ConcUnit_Table[[#This Row],[Unit]]) -> g | K36: =IF(ConcUnit_Table[[#This Row],[Under]]="", Type1, VLOOKUP(ConcUnit_Table[[#This Row],[Under]],Aliquot_Unit_Table[],2,FALSE)) -> Mass | L36: =GetFactor(ConcUnit_Table[[#This Row],[Unit]]) -> 1 | M36: =IF(ConcUnit_Table[[#This Row],[Under]]="","1",VLOOKUP(ConcUnit_Table[[#This Row],[Type]],SI_Unit_Table[],2,FALSE)) -> kg
B37: Tc-99 | C37: 211500 | D37: 1100 | E37: a | F37: =LN(2) / (Nuclide_Table[[#This Row],[Half-life]] * VLOOKUP(Nuclide_Table[[#This Row],[Unit]],Time_Unit_Table[],2,FALSE) / 60) -> 6.23119939e-12 | H37: mBq/kg | I37: =UnitOver(ConcUnit_Table[[#This Row],[Unit]]) -> mBq | J37: =UnitUnder(ConcUnit_Table[[#This Row],[Unit]]) -> kg | K37: =IF(ConcUnit_Table[[#This Row],[Under]]="", Type1, VLOOKUP(ConcUnit_Table[[#This Row],[Under]],Aliquot_Unit_Table[],2,FALSE)) -> Mass | L37: =GetFactor(ConcUnit_Table[[#This Row],[Unit]]) -> 0.001 | M37: =IF(ConcUnit_Table[[#This Row],[Under]]="","1",VLOOKUP(ConcUnit_Table[[#This Row],[Type]],SI_Unit_Table[],2,FALSE)) -> kg
B38: Th-228 | C38: 1.9126 | D38: 0.0009 | E38: a | F38: =LN(2) / (Nuclide_Table[[#This Row],[Half-life]] * VLOOKUP(Nuclide_Table[[#This Row],[Unit]],Time_Unit_Table[],2,FALSE) / 60) -> 6.890613149e-07 | H38: mBq/L | I38: =UnitOver(ConcUnit_Table[[#This Row],[Unit]]) -> mBq | J38: =UnitUnder(ConcUnit_Table[[#This Row],[Unit]]) -> L | K38: =IF(ConcUnit_Table[[#This Row],[Under]]="", Type1, VLOOKUP(ConcUnit_Table[[#This Row],[Under]],Aliquot_Unit_Table[],2,FALSE)) -> Volume | L38: =GetFactor(ConcUnit_Table[[#This Row],[Unit]]) -> 1 | M38: =IF(ConcUnit_Table[[#This Row],[Under]]="","1",VLOOKUP(ConcUnit_Table[[#This Row],[Type]],SI_Unit_Table[],2,FALSE)) -> m3
B39: Th-229 | C39: 7340 | D39: 160 | E39: a | F39: =LN(2) / (Nuclide_Table[[#This Row],[Half-life]] * VLOOKUP(Nuclide_Table[[#This Row],[Unit]],Time_Unit_Table[],2,FALSE) / 60) -> 1.795502276e-10 | H39: mBq/m3 | I39: =UnitOver(ConcUnit_Table[[#This Row],[Unit]]) -> mBq | J39: =UnitUnder(ConcUnit_Table[[#This Row],[Unit]]) -> m3 | K39: =IF(ConcUnit_Table[[#This Row],[Under]]="", Type1, VLOOKUP(ConcUnit_Table[[#This Row],[Under]],Aliquot_Unit_Table[],2,FALSE)) -> Volume | L39: =GetFactor(ConcUnit_Table[[#This Row],[Unit]]) -> 0.001 | M39: =IF(ConcUnit_Table[[#This Row],[Under]]="","1",VLOOKUP(ConcUnit_Table[[#This Row],[Type]],SI_Unit_Table[],2,FALSE)) -> m3
B40: Th-230 | C40: 75380 | D40: 300 | E40: a | F40: =LN(2) / (Nuclide_Table[[#This Row],[Half-life]] * VLOOKUP(Nuclide_Table[[#This Row],[Unit]],Time_Unit_Table[],2,FALSE) / 60) -> 1.748339972e-11 | H40: mCi | I40: =UnitOver(ConcUnit_Table[[#This Row],[Unit]]) -> mCi | J40: =UnitUnder(ConcUnit_Table[[#This Row],[Unit]]) ->  | K40: =IF(ConcUnit_Table[[#This Row],[Under]]="", Type1, VLOOKUP(ConcUnit_Table[[#This Row],[Under]],Aliquot_Unit_Table[],2,FALSE)) -> Total | L40: =GetFactor(ConcUnit_Table[[#This Row],[Unit]]) -> 37000000 | M40: =IF(ConcUnit_Table[[#This Row],[Under]]="","1",VLOOKUP(ConcUnit_Table[[#This Row],[Type]],SI_Unit_Table[],2,FALSE)) -> 1
B41: Th-232 | C41: 14020000000 | D41: 60000000 | E41: a | F41: =LN(2) / (Nuclide_Table[[#This Row],[Half-life]] * VLOOKUP(Nuclide_Table[[#This Row],[Unit]],Time_Unit_Table[],2,FALSE) / 60) -> 9.400133173e-17 | H41: mCi/g | I41: =UnitOver(ConcUnit_Table[[#This Row],[Unit]]) -> mCi | J41: =UnitUnder(ConcUnit_Table[[#This Row],[Unit]]) -> g | K41: =IF(ConcUnit_Table[[#This Row],[Under]]="", Type1, VLOOKUP(ConcUnit_Table[[#This Row],[Under]],Aliquot_Unit_Table[],2,FALSE)) -> Mass | L41: =GetFactor(ConcUnit_Table[[#This Row],[Unit]]) -> 37000000000 | M41: =IF(ConcUnit_Table[[#This Row],[Under]]="","1",VLOOKUP(ConcUnit_Table[[#This Row],[Type]],SI_Unit_Table[],2,FALSE)) -> kg
B42: U-234 | C42: 245500 | D42: 600 | E42: a | F42: =LN(2) / (Nuclide_Table[[#This Row],[Half-life]] * VLOOKUP(Nuclide_Table[[#This Row],[Unit]],Time_Unit_Table[],2,FALSE) / 60) -> 5.368222692e-12 | H42: mCi/kg | I42: =UnitOver(ConcUnit_Table[[#This Row],[Unit]]) -> mCi | J42: =UnitUnder(ConcUnit_Table[[#This Row],[Unit]]) -> kg | K42: =IF(ConcUnit_Table[[#This Row],[Under]]="", Type1, VLOOKUP(ConcUnit_Table[[#This Row],[Under]],Aliquot_Unit_Table[],2,FALSE)) -> Mass | L42: =GetFactor(ConcUnit_Table[[#This Row],[Unit]]) -> 37000000 | M42: =IF(ConcUnit_Table[[#This Row],[Under]]="","1",VLOOKUP(ConcUnit_Table[[#This Row],[Type]],SI_Unit_Table[],2,FALSE)) -> kg
B43: U-235 | C43: 704000000 | D43: 1000000 | E43: a | F43: =LN(2) / (Nuclide_Table[[#This Row],[Half-life]] * VLOOKUP(Nuclide_Table[[#This Row],[Unit]],Time_Unit_Table[],2,FALSE) / 60) -> 1.872015158e-15 | H43: mCi/L | I43: =UnitOver(ConcUnit_Table[[#This Row],[Unit]]) -> mCi | J43: =UnitUnder(ConcUnit_Table[[#This Row],[Unit]]) -> L | K43: =IF(ConcUnit_Table[[#This Row],[Under]]="", Type1, VLOOKUP(ConcUnit_Table[[#This Row],[Under]],Aliquot_Unit_Table[],2,FALSE)) -> Volume | L43: =GetFactor(ConcUnit_Table[[#This Row],[Unit]]) -> 37000000000 | M43: =IF(ConcUnit_Table[[#This Row],[Under]]="","1",VLOOKUP(ConcUnit_Table[[#This Row],[Type]],SI_Unit_Table[],2,FALSE)) -> m3
B44: U-238 | C44: 4468000000 | D44: 5000000 | E44: a | F44: =LN(2) / (Nuclide_Table[[#This Row],[Half-life]] * VLOOKUP(Nuclide_Table[[#This Row],[Unit]],Time_Unit_Table[],2,FALSE) / 60) -> 2.949638923e-16 | H44: mCi/m3 | I44: =UnitOver(ConcUnit_Table[[#This Row],[Unit]]) -> mCi | J44: =UnitUnder(ConcUnit_Table[[#This Row],[Unit]]) -> m3 | K44: =IF(ConcUnit_Table[[#This Row],[Under]]="", Type1, VLOOKUP(ConcUnit_Table[[#This Row],[Under]],Aliquot_Unit_Table[],2,FALSE)) -> Volume | L44: =GetFactor(ConcUnit_Table[[#This Row],[Unit]]) -> 37000000 | M44: =IF(ConcUnit_Table[[#This Row],[Under]]="","1",VLOOKUP(ConcUnit_Table[[#This Row],[Type]],SI_Unit_Table[],2,FALSE)) -> m3
H45: nCi | I45: =UnitOver(ConcUnit_Table[[#This Row],[Unit]]) -> nCi | J45: =UnitUnder(ConcUnit_Table[[#This Row],[Unit]]) ->  | K45: =IF(ConcUnit_Table[[#This Row],[Under]]="", Type1, VLOOKUP(ConcUnit_Table[[#This Row],[Under]],Aliquot_Unit_Table[],2,FALSE)) -> Total | L45: =GetFactor(ConcUnit_Table[[#This Row],[Unit]]) -> 37 | M45: =IF(ConcUnit_Table[[#This Row],[Under]]="","1",VLOOKUP(ConcUnit_Table[[#This Row],[Type]],SI_Unit_Table[],2,FALSE)) -> 1
H46: nCi/g | I46: =UnitOver(ConcUnit_Table[[#This Row],[Unit]]) -> nCi | J46: =UnitUnder(ConcUnit_Table[[#This Row],[Unit]]) -> g | K46: =IF(ConcUnit_Table[[#This Row],[Under]]="", Type1, VLOOKUP(ConcUnit_Table[[#This Row],[Under]],Aliquot_Unit_Table[],2,FALSE)) -> Mass | L46: =GetFactor(ConcUnit_Table[[#This Row],[Unit]]) -> 37000 | M46: =IF(ConcUnit_Table[[#This Row],[Under]]="","1",VLOOKUP(ConcUnit_Table[[#This Row],[Type]],SI_Unit_Table[],2,FALSE)) -> kg
B47: Aliquot Units | H47: nCi/kg | I47: =UnitOver(ConcUnit_Table[[#This Row],[Unit]]) -> nCi | J47: =UnitUnder(ConcUnit_Table[[#This Row],[Unit]]) -> kg | K47: =IF(ConcUnit_Table[[#This Row],[Under]]="", Type1, VLOOKUP(ConcUnit_Table[[#This Row],[Under]],Aliquot_Unit_Table[],2,FALSE)) -> Mass | L47: =GetFactor(ConcUnit_Table[[#This Row],[Unit]]) -> 37 | M47: =IF(ConcUnit_Table[[#This Row],[Under]]="","1",VLOOKUP(ConcUnit_Table[[#This Row],[Type]],SI_Unit_Table[],2,FALSE)) -> kg
B48: Unit | C48: Type | D48: SI Factor | H48: nCi/L | I48: =UnitOver(ConcUnit_Table[[#This Row],[Unit]]) -> nCi | J48: =UnitUnder(ConcUnit_Table[[#This Row],[Unit]]) -> L | K48: =IF(ConcUnit_Table[[#This Row],[Under]]="", Type1, VLOOKUP(ConcUnit_Table[[#This Row],[Under]],Aliquot_Unit_Table[],2,FALSE)) -> Volume | L48: =GetFactor(ConcUnit_Table[[#This Row],[Unit]]) -> 37000 | M48: =IF(ConcUnit_Table[[#This Row],[Under]]="","1",VLOOKUP(ConcUnit_Table[[#This Row],[Type]],SI_Unit_Table[],2,FALSE)) -> m3
B49: ft3 | C49: Volume | D49: =0.3048 ^ 3 -> 0.02831684659 | H49: nCi/m3 | I49: =UnitOver(ConcUnit_Table[[#This Row],[Unit]]) -> nCi | J49: =UnitUnder(ConcUnit_Table[[#This Row],[Unit]]) -> m3 | K49: =IF(ConcUnit_Table[[#This Row],[Under]]="", Type1, VLOOKUP(ConcUnit_Table[[#This Row],[Under]],Aliquot_Unit_Table[],2,FALSE)) -> Volume | L49: =GetFactor(ConcUnit_Table[[#This Row],[Unit]]) -> 37 | M49: =IF(ConcUnit_Table[[#This Row],[Under]]="","1",VLOOKUP(ConcUnit_Table[[#This Row],[Type]],SI_Unit_Table[],2,FALSE)) -> m3
B50: g | C50: Mass | D50: 0.001 | H50: pCi | I50: =UnitOver(ConcUnit_Table[[#This Row],[Unit]]) -> pCi | J50: =UnitUnder(ConcUnit_Table[[#This Row],[Unit]]) ->  | K50: =IF(ConcUnit_Table[[#This Row],[Under]]="", Type1, VLOOKUP(ConcUnit_Table[[#This Row],[Under]],Aliquot_Unit_Table[],2,FALSE)) -> Total | L50: =GetFactor(ConcUnit_Table[[#This Row],[Unit]]) -> 0.037 | M50: =IF(ConcUnit_Table[[#This Row],[Under]]="","1",VLOOKUP(ConcUnit_Table[[#This Row],[Type]],SI_Unit_Table[],2,FALSE)) -> 1
B51: kg | C51: Mass | D51: 1 | H51: pCi/g | I51: =UnitOver(ConcUnit_Table[[#This Row],[Unit]]) -> pCi | J51: =UnitUnder(ConcUnit_Table[[#This Row],[Unit]]) -> g | K51: =IF(ConcUnit_Table[[#This Row],[Under]]="", Type1, VLOOKUP(ConcUnit_Table[[#This Row],[Under]],Aliquot_Unit_Table[],2,FALSE)) -> Mass | L51: =GetFactor(ConcUnit_Table[[#This Row],[Unit]]) -> 37 | M51: =IF(ConcUnit_Table[[#This Row],[Under]]="","1",VLOOKUP(ConcUnit_Table[[#This Row],[Type]],SI_Unit_Table[],2,FALSE)) -> kg
B52: L | C52: Volume | D52: 0.001 | H52: pCi/kg | I52: =UnitOver(ConcUnit_Table[[#This Row],[Unit]]) -> pCi | J52: =UnitUnder(ConcUnit_Table[[#This Row],[Unit]]) -> kg | K52: =IF(ConcUnit_Table[[#This Row],[Under]]="", Type1, VLOOKUP(ConcUnit_Table[[#This Row],[Under]],Aliquot_Unit_Table[],2,FALSE)) -> Mass | L52: =GetFactor(ConcUnit_Table[[#This Row],[Unit]]) -> 0.037 | M52: =IF(ConcUnit_Table[[#This Row],[Under]]="","1",VLOOKUP(ConcUnit_Table[[#This Row],[Type]],SI_Unit_Table[],2,FALSE)) -> kg
B53: m3 | C53: Volume | D53: 1 | H53: pCi/L | I53: =UnitOver(ConcUnit_Table[[#This Row],[Unit]]) -> pCi | J53: =UnitUnder(ConcUnit_Table[[#This Row],[Unit]]) -> L | K53: =IF(ConcUnit_Table[[#This Row],[Under]]="", Type1, VLOOKUP(ConcUnit_Table[[#This Row],[Under]],Aliquot_Unit_Table[],2,FALSE)) -> Volume | L53: =GetFactor(ConcUnit_Table[[#This Row],[Unit]]) -> 37 | M53: =IF(ConcUnit_Table[[#This Row],[Under]]="","1",VLOOKUP(ConcUnit_Table[[#This Row],[Type]],SI_Unit_Table[],2,FALSE)) -> m3
B54: mg | C54: Mass | D54: 1e-06 | H54: pCi/m3 | I54: =UnitOver(ConcUnit_Table[[#This Row],[Unit]]) -> pCi | J54: =UnitUnder(ConcUnit_Table[[#This Row],[Unit]]) -> m3 | K54: =IF(ConcUnit_Table[[#This Row],[Under]]="", Type1, VLOOKUP(ConcUnit_Table[[#This Row],[Under]],Aliquot_Unit_Table[],2,FALSE)) -> Volume | L54: =GetFactor(ConcUnit_Table[[#This Row],[Unit]]) -> 0.037 | M54: =IF(ConcUnit_Table[[#This Row],[Under]]="","1",VLOOKUP(ConcUnit_Table[[#This Row],[Type]],SI_Unit_Table[],2,FALSE)) -> m3
B55: mL | C55: Volume | D55: 1e-06 | H55: μBq | I55: =UnitOver(ConcUnit_Table[[#This Row],[Unit]]) -> μBq | J55: =UnitUnder(ConcUnit_Table[[#This Row],[Unit]]) ->  | K55: =IF(ConcUnit_Table[[#This Row],[Under]]="", Type1, VLOOKUP(ConcUnit_Table[[#This Row],[Under]],Aliquot_Unit_Table[],2,FALSE)) -> Total | L55: =GetFactor(ConcUnit_Table[[#This Row],[Unit]]) -> 1e-06 | M55: =IF(ConcUnit_Table[[#This Row],[Under]]="","1",VLOOKUP(ConcUnit_Table[[#This Row],[Type]],SI_Unit_Table[],2,FALSE)) -> 1
C56: =Type1 -> Total | D56: 1 | H56: μBq/g | I56: =UnitOver(ConcUnit_Table[[#This Row],[Unit]]) -> μBq | J56: =UnitUnder(ConcUnit_Table[[#This Row],[Unit]]) -> g | K56: =IF(ConcUnit_Table[[#This Row],[Under]]="", Type1, VLOOKUP(ConcUnit_Table[[#This Row],[Under]],Aliquot_Unit_Table[],2,FALSE)) -> Mass | L56: =GetFactor(ConcUnit_Table[[#This Row],[Unit]]) -> 0.001 | M56: =IF(ConcUnit_Table[[#This Row],[Under]]="","1",VLOOKUP(ConcUnit_Table[[#This Row],[Type]],SI_Unit_Table[],2,FALSE)) -> kg
H57: μBq/kg | I57: =UnitOver(ConcUnit_Table[[#This Row],[Unit]]) -> μBq | J57: =UnitUnder(ConcUnit_Table[[#This Row],[Unit]]) -> kg | K57: =IF(ConcUnit_Table[[#This Row],[Under]]="", Type1, VLOOKUP(ConcUnit_Table[[#This Row],[Under]],Aliquot_Unit_Table[],2,FALSE)) -> Mass | L57: =GetFactor(ConcUnit_Table[[#This Row],[Unit]]) -> 1e-06 | M57: =IF(ConcUnit_Table[[#This Row],[Under]]="","1",VLOOKUP(ConcUnit_Table[[#This Row],[Type]],SI_Unit_Table[],2,FALSE)) -> kg
H58: μBq/L | I58: =UnitOver(ConcUnit_Table[[#This Row],[Unit]]) -> μBq | J58: =UnitUnder(ConcUnit_Table[[#This Row],[Unit]]) -> L | K58: =IF(ConcUnit_Table[[#This Row],[Under]]="", Type1, VLOOKUP(ConcUnit_Table[[#This Row],[Under]],Aliquot_Unit_Table[],2,FALSE)) -> Volume | L58: =GetFactor(ConcUnit_Table[[#This Row],[Unit]]) -> 0.001 | M58: =IF(ConcUnit_Table[[#This Row],[Under]]="","1",VLOOKUP(ConcUnit_Table[[#This Row],[Type]],SI_Unit_Table[],2,FALSE)) -> m3
H59: μBq/m3 | I59: =UnitOver(ConcUnit_Table[[#This Row],[Unit]]) -> μBq | J59: =UnitUnder(ConcUnit_Table[[#This Row],[Unit]]) -> m3 | K59: =IF(ConcUnit_Table[[#This Row],[Under]]="", Type1, VLOOKUP(ConcUnit_Table[[#This Row],[Under]],Aliquot_Unit_Table[],2,FALSE)) -> Volume | L59: =GetFactor(ConcUnit_Table[[#This Row],[Unit]]) -> 1e-06 | M59: =IF(ConcUnit_Table[[#This Row],[Under]]="","1",VLOOKUP(ConcUnit_Table[[#This Row],[Type]],SI_Unit_Table[],2,FALSE)) -> m3
H60: μCi | I60: =UnitOver(ConcUnit_Table[[#This Row],[Unit]]) -> μCi | J60: =UnitUnder(ConcUnit_Table[[#This Row],[Unit]]) ->  | K60: =IF(ConcUnit_Table[[#This Row],[Under]]="", Type1, VLOOKUP(ConcUnit_Table[[#This Row],[Under]],Aliquot_Unit_Table[],2,FALSE)) -> Total | L60: =GetFactor(ConcUnit_Table[[#This Row],[Unit]]) -> 37000 | M60: =IF(ConcUnit_Table[[#This Row],[Under]]="","1",VLOOKUP(ConcUnit_Table[[#This Row],[Type]],SI_Unit_Table[],2,FALSE)) -> 1
H61: μCi/g | I61: =UnitOver(ConcUnit_Table[[#This Row],[Unit]]) -> μCi | J61: =UnitUnder(ConcUnit_Table[[#This Row],[Unit]]) -> g | K61: =IF(ConcUnit_Table[[#This Row],[Under]]="", Type1, VLOOKUP(ConcUnit_Table[[#This Row],[Under]],Aliquot_Unit_Table[],2,FALSE)) -> Mass | L61: =GetFactor(ConcUnit_Table[[#This Row],[Unit]]) -> 37000000 | M61: =IF(ConcUnit_Table[[#This Row],[Under]]="","1",VLOOKUP(ConcUnit_Table[[#This Row],[Type]],SI_Unit_Table[],2,FALSE)) -> kg
H62: μCi/kg | I62: =UnitOver(ConcUnit_Table[[#This Row],[Unit]]) -> μCi | J62: =UnitUnder(ConcUnit_Table[[#This Row],[Unit]]) -> kg | K62: =IF(ConcUnit_Table[[#This Row],[Under]]="", Type1, VLOOKUP(ConcUnit_Table[[#This Row],[Under]],Aliquot_Unit_Table[],2,FALSE)) -> Mass | L62: =GetFactor(ConcUnit_Table[[#This Row],[Unit]]) -> 37000 | M62: =IF(ConcUnit_Table[[#This Row],[Under]]="","1",VLOOKUP(ConcUnit_Table[[#This Row],[Type]],SI_Unit_Table[],2,FALSE)) -> kg
H63: μCi/L | I63: =UnitOver(ConcUnit_Table[[#This Row],[Unit]]) -> μCi | J63: =UnitUnder(ConcUnit_Table[[#This Row],[Unit]]) -> L | K63: =IF(ConcUnit_Table[[#This Row],[Under]]="", Type1, VLOOKUP(ConcUnit_Table[[#This Row],[Under]],Aliquot_Unit_Table[],2,FALSE)) -> Volume | L63: =GetFactor(ConcUnit_Table[[#This Row],[Unit]]) -> 37000000 | M63: =IF(ConcUnit_Table[[#This Row],[Under]]="","1",VLOOKUP(ConcUnit_Table[[#This Row],[Type]],SI_Unit_Table[],2,FALSE)) -> m3
H64: μCi/m3 | I64: =UnitOver(ConcUnit_Table[[#This Row],[Unit]]) -> μCi | J64: =UnitUnder(ConcUnit_Table[[#This Row],[Unit]]) -> m3 | K64: =IF(ConcUnit_Table[[#This Row],[Under]]="", Type1, VLOOKUP(ConcUnit_Table[[#This Row],[Under]],Aliquot_Unit_Table[],2,FALSE)) -> Volume | L64: =GetFactor(ConcUnit_Table[[#This Row],[Unit]]) -> 37000 | M64: =IF(ConcUnit_Table[[#This Row],[Under]]="","1",VLOOKUP(ConcUnit_Table[[#This Row],[Type]],SI_Unit_Table[],2,FALSE)) -> m3
